Cogmind - Beta 16 @@@ ROGUE MODE // 2025.11.08 @ 21:31:00 Player: dp-fld Result: Destroyed by Hotshot with Precision Phase Gun Performance ------------- Evolutions (7) 3500 Regions Visited (28) 5600 Robots Destroyed (208) 1040 Value Destroyed (7013) 7013 Prototype IDs (97) 1940 Alien Tech Used (3) 600 Bonus (5265) 5265 TOTAL SCORE: 24958 Bonus ------- High Alert Combat Kills 416 Follower Combat Kills 1086 Registered with UFD 300 Met Optimus in HQ 500 Met Data Miner 300 Met Zhirov 300 Met Warlord at Base 500 MAIN.C Attacked Warlord 500 Scanned by Researcher 500 Met Optimus at Protoforge 1000 Friendly Fire -137 Cogmind --------- Core Integrity 0/1300 Matter 300/300 Energy 365/600 System Corruption 13% Temperature Cool (9) Movement Core (600) Ox11 Location -3/Protoforge Parts ------- > --- POWER (1) -------- (None) > --- PROPULSION (5) --- (None) > --- UTILITY (13) ----- Large Storage Unit Advanced Energy Well Experimental Optical Array Experimental Targeting Computer Experimental Targeting Computer Experimental Core Analyzer Improved Armor Integrity Analyzer Graphene Brace > --- WEAPON (2) ------- Vortex Lance Experimental Jetlance > --- INVENTORY (15) --- Centrium Light Armor Plating Plasma Lance UFD Drillbomb Peak State ------------ > --- POWER ------------ Improved Quantum Reactor > --- PROPULSION ------- Experimental Biometal Leg Experimental Biometal Leg Experimental Biometal Leg Combat Antigrav System Combat Antigrav System > --- UTILITY ---------- Large Storage Unit Experimental Optical Array Advanced Sensor Array Experimental Signal Interpreter Experimental Target Analyzer Experimental Core Analyzer Experimental Core Analyzer Improved Armor Integrity Analyzer Experimental Reaction Control System Centrium Light Armor Plating Centrium Light Armor Plating Centrium Medium Armor Plating Graphene Brace > --- WEAPON ----------- Helical Railgun Vortex Lance > --- INVENTORY -------- Micro Antimatter Reactor Improved Quantum Reactor Advanced Energy Well Matter Neutralizer Vortex Lance UFD Drillbomb [Rating: 192] Favorites ----------- Power Light Angular Momentum Engine Engine Light Angular Momentum Engine Power Core Nuclear Core Reactor Heavy Antimatter Reactor Propulsion Light Treads Treads Light Treads Leg Experimental Biometal Leg Wheel Compact Wheel Hover Unit Aerolev Unit Flight Unit Improved VTOL Module Utility Large Storage Unit Device Advanced Sensor Array Storage Large Storage Unit Processor Experimental Signal Interpreter Hackware System Mapper Protection Experimental Utility Shielding Weapon Great Axe Energy Gun Heavy Particle Gun Energy Cannon Advanced Beam Cannon Ballistic Gun Improved Assault Rifle Ballistic Cannon Light Cannon Launcher Rocket Launcher Special Weapon Mining Laser Impact Weapon Power Maul Slashing Weapon Great Axe Piercing Weapon Heavy Pick Special Melee Weapon Datajack Build | -11 -10 -10 -10 -9 -8 -8 -8 -8 -6 -6 -6 -6 -6 -6 -5 -5 -5 -5 -5 -4 -4 -4 -4 -4 -3 -3 -3 -3 ------- Run | Yrd Mat Min Exi Min Mat Sto Rec Scr Fac Was Fac Low Low Dat Pro Fac Upp Upp War Pro Fac Upp Upp Zhi Pro Res Qua Frg Slots Evolved 14 | . . . . . 4 . . . 4 . . . . . . 2 . . . . 2 . . . . 2 . . Power . | . . . . . . . . . . . . . . . . . . . . . . . . . . . . . Propulsion 3 | . . . . . 2 . . . 1 . . . . . . . . . . . . . . . . . . . Utility 11 | . . . . . 2 . . . 3 . . . . . . 2 . . . . 2 . . . . 2 . . Weapon . | . . . . . . . . . . . . . . . . . . . . . . . . . . . . . Parts Attached 218 | 1 13 7 1 3 40 16 3 10 13 . 3 . . 3 1 12 2 . 10 . 9 . 1 3 1 3 7 56 Power 27 | . 3 3 . . 4 2 . 1 2 . . . . . . . . . 2 . 2 . . 1 . . 1 6 Engine 12 | . 3 3 . . 1 2 . . 2 . . . . . . . . . 1 . . . . . . . . . Core 4 | . . . . . 3 . . 1 . . . . . . . . . . . . . . . . . . . . Reactor 11 | . . . . . . . . . . . . . . . . . . . 1 . 2 . . 1 . . 1 6 Propulsion 51 | . 4 . . . 11 7 2 4 1 . . . . . . 6 . . 2 . . . . . . . 2 12 Treads 21 | . 4 . . . 7 7 2 1 . . . . . . . . . . . . . . . . . . . . Leg 11 | . . . . . . . . . . . . . . . . . . . . . . . . . . . . 11 Wheel 1 | . . . . . 1 . . . . . . . . . . . . . . . . . . . . . . . Hover 16 | . . . . . 1 . . 3 1 . . . . . . 6 . . 2 . . . . . . . 2 1 Flight 2 | . . . . . 2 . . . . . . . . . . . . . . . . . . . . . . . Utility 86 | 1 3 1 . . 11 1 1 4 8 . 1 . . 2 1 6 1 . 1 . 6 . 1 2 1 3 2 29 Device 30 | 1 2 1 . . 4 . . 1 4 . 1 . . 1 1 . . . 1 . 2 . 1 . . 3 2 5 Storage 8 | . 1 . . . 3 . . . 1 . . . . . . 1 . . . . 1 . . 1 . . . . Processor 19 | . . . . . 1 1 . 1 3 . . . . 1 . . . . . . 1 . . . . . . 11 Hackware 4 | . . . . . . . . . . . . . . . . 3 . . . . 1 . . . . . . . Protection 25 | . . . . . 3 . 1 2 . . . . . . . 2 1 . . . 1 . . 1 1 . . 13 Artifact . | . . . . . . . . . . . . . . . . . . . . . . . . . . . . . Weapon 54 | . 3 3 1 3 14 6 . 1 2 . 2 . . 1 . . 1 . 5 . 1 . . . . . 2 9 Energy Gun 13 | . 2 2 . 1 5 2 . 1 . . . . . . . . . . . . . . . . . . . . Energy Cannon 5 | . . . . . . 1 . . . . . . . . . . 1 . 1 . . . . . . . 1 1 Ballistic Gun 13 | . . . . . 6 2 . . . . . . . . . . . . . . 1 . . . . . . 4 Ballistic Cannon 4 | . 1 . . . 2 . . . . . . . . . . . . . . . . . . . . . . 1 Launcher 5 | . . . . 2 . . . . . . 1 . . . . . . . 1 . . . . . . . . 1 Special Weapon 1 | . . 1 . . . . . . . . . . . . . . . . . . . . . . . . . . Impact Weapon 2 | . . . . . . . . . 1 . . . . . . . . . 1 . . . . . . . . . Slashing Weapon 4 | . . . . . 1 . . . 1 . 1 . . . . . . . . . . . . . . . 1 . Piercing Weapon 5 | . . . . . . . . . . . . . . 1 . . . . 2 . . . . . . . . 2 Special Melee Weapon 2 | . . . 1 . . 1 . . . . . . . . . . . . . . . . . . . . . . Unidentified Prototypes 32 | . . . . . 5 1 . . . . . . . . . 3 . . 6 . . . . 3 . . 1 13 Parts Lost 52 | . 1 3 . . 5 3 . . . . . . . . . . . . . . . . . . . . 3 37 Power 7 | . 1 1 . . 1 1 . . . . . . . . . . . . . . . . . . . . . 3 Propulsion 19 | . . . . . 4 1 . . . . . . . . . . . . . . . . . . . . 1 13 Utility 17 | . . . . . . . . . . . . . . . . . . . . . . . . . . . 1 16 Weapon 9 | . . 2 . . . 1 . . . . . . . . . . . . . . . . . . . . 1 5 Highest Loss Streak 10 | . 1 2 . . 2 1 . . . . . . . . . . . . . . . . . . . . 2 10 To Critical Strikes . | . . . . . . . . . . . . . . . . . . . . . . . . . . . . . Average Backups 13 | 6 12 14 13 13 14 14 15 14 11 14 14 15 15 13 15 13 15 15 14 15 14 15 15 14 15 14 14 6 Power . | 1 . . . . . . 1 . . 1 1 1 1 1 1 1 1 1 1 1 1 1 1 1 1 1 1 . Propulsion 2 | 4 2 2 2 2 3 5 5 4 . . . . . . . 1 3 3 2 2 1 2 2 1 1 . . . Utility 6 | . 7 10 9 8 4 4 4 3 7 9 10 12 12 10 12 7 8 8 8 9 7 7 7 7 9 8 8 1 Weapon 3 | 1 1 . 1 2 4 3 4 4 3 4 2 2 2 2 2 3 3 3 2 3 4 5 5 4 4 4 4 3 Tool/Special . | . . . . . . . . . . . . . . . . . . . . . . . . . . . . . Unused Backups 75 | 6 12 1 3 2 16 3 . 1 4 . 3 . . . . 10 . . 1 . 5 . . 3 . 2 2 1 Power 10 | 1 3 . . . 2 . . . . . . . . . . 1 . . . . 2 . . . . 1 . . Propulsion 11 | 2 6 . . . 1 . . . . . 1 . . . . 1 . . . . . . . . . . . . Utility 38 | 1 2 1 3 2 9 2 . 1 2 . 1 . . . . 5 . . 1 . 3 . . 2 . . 2 1 Weapon 16 | 2 1 . . . 4 1 . . 2 . 1 . . . . 3 . . . . . . . 1 . 1 . . Tool/Special . | . . . . . . . . . . . . . . . . . . . . . . . . . . . . . Average Slot Usage (%) 97 | . 99 97 83 100 98 99 100 100 98 100 99 100 100 100 100 99 100 100 99 100 99 100 100 97 100 99 97 90 Engine 5 | . 13 13 14 14 2 8 9 8 5 6 5 6 6 6 6 5 5 5 5 5 1 . . . . . . . Core 1 | . . . . . 6 . . . . . . . . . . . . . . . . . . . . . . . Reactor 1 | . . . . . . . . . . . . . . . . . . . . . 3 5 5 5 5 4 4 3 Treads 16 | . 24 28 28 28 33 35 36 32 . . . . . . . . . . . . . . . . . . . . Leg 1 | . 3 . . . . . . . . . . . . . . . . . . . . . . . . . . 10 Hover 12 | . . . . . . . . 3 33 33 33 33 33 33 33 29 29 29 29 29 25 26 26 26 26 23 23 9 Device 11 | . 14 14 14 14 13 9 9 9 8 6 10 6 6 1 6 10 11 10 7 7 10 10 9 10 9 18 19 14 Storage 8 | . 14 14 14 14 9 9 9 9 6 6 6 6 6 6 6 5 5 5 5 5 5 5 5 5 5 4 4 6 Processor 10 | . . . . . 4 8 9 9 22 26 26 26 26 31 33 11 11 11 11 11 15 15 15 15 15 14 14 22 Hackware 5 | . . . . . . . . . . . . . . . . 15 17 17 17 17 20 21 21 21 21 19 19 3 Protection 5 | . . . . . 9 9 9 9 6 6 1 6 6 6 . 5 5 5 8 8 5 5 5 5 5 4 4 9 Energy Gun 6 | . 18 23 4 26 12 5 9 9 . . . . . . . . . . . . . . . . . . . . Energy Cannon 2 | . . . . . . 4 9 8 . . . . . . . . 3 4 3 5 4 3 3 2 1 3 2 . Ballistic Gun 1 | . . . . . 3 6 . . 3 . . . . . . . . . . . . . . . . . . 2 Ballistic Cannon 1 | . 9 . . . 2 . . . . . . . . . . . . . . . . . . . . . . 1 Slashing Weapon 2 | . . . . . . 1 . . 6 13 12 13 13 7 6 5 5 5 4 5 4 5 5 5 5 4 3 . Peak Build Rating 192 | 7 11 11 9 10 30 30 29 45 68 67 70 69 69 72 74 106 107 107 123 115 132 129 135 135 135 156 178 192 Average Rating 66 | 6 10 9 7 9 24 28 27 28 64 67 67 69 69 70 73 98 106 106 112 111 127 127 128 129 132 150 163 159 On Entrance 74 | 6 7 11 9 9 10 30 29 27 44 67 67 68 69 69 72 74 106 104 107 115 110 125 125 125 132 133 152 171 Avg Prop Armor Cover (%) 1 | . . . . . 1 . . . . . . . . . . . . . . . . . . . . . . 2 Naked Turns . | . . . . . . . . . . . . . . . . . . . . . . . . . . . . . Heaviest Build 73 | 12 32 32 28 30 46 48 45 42 40 40 42 40 39 39 37 60 47 46 54 54 56 50 50 55 56 57 58 73 Greatest Support 142 | 20 40 40 40 40 80 83 80 80 40 40 40 40 40 40 40 56 54 54 60 54 66 56 66 61 77 63 83 142 Greatest Overweight (x) 1 | . . . . . 1 . . . . . 1 . . . . 1 . . . . . . . . . . . 1 Average Overweight (x) . | . . . . . . . . . . . . . . . . . . . . . . . . . . . . . Largest Inventory Capacity 15 | 8 15 15 15 15 15 15 15 15 15 15 15 15 15 15 15 15 15 15 15 15 15 15 15 15 15 15 15 15 Average Capacity 14 | 8 14 15 15 15 15 15 15 14 13 15 15 15 15 15 15 15 15 15 15 15 15 15 15 15 15 15 15 15 Most Carried 15 | 7 15 15 15 15 15 15 15 15 15 15 15 15 15 15 15 15 15 15 15 15 15 15 15 15 15 15 15 15 Average Carried 14 | 6 13 14 14 14 14 14 15 14 13 15 14 15 15 13 15 13 15 15 14 15 14 15 15 14 15 14 14 12 Final Capacity 15 | 8 15 15 15 15 15 15 15 10 15 15 15 15 15 15 15 15 15 15 15 15 15 15 15 15 15 15 15 15 Final Carried 15 | 7 15 15 14 15 15 15 15 10 15 15 15 15 15 15 15 15 15 15 15 15 15 15 15 15 15 15 15 12 Scrap Suit Usage (%) 1 | . . . . . . . . . . . . . . . . . . . . . . . . . . . . 1 Class Distribution -------------------- 35% | Scavenger-Mutant 22% | Wizard-Scout 17% | Mutant 8% | Scout 4% | Wizard-Ninja Dominant Class ---------------- Mutant | -10/Materials Scavenger-Mutant | -10/Mines Scavenger-Mutant | -10/Exiles Scavenger-Mutant | -9/Mines Scavenger-Mutant | -8/Materials Mutant | -8/Storage Scavenger-Mutant | -8/Recycling Scavenger-Mutant | -8/Scraptown Scout | -6/Factory Scout | -6/Waste Scout | -6/Factory Scout | -6/Lower Caves Scout | -6/Lower Caves Gladiator | -6/Data Miner Scout | -5/Proximity Caves Wizard-Scout | -5/Factory Wizard-Scout | -5/Upper Caves Wizard-Scout | -5/Upper Caves Wizard-Mutant | -5/Warlord Wizard-Scout | -4/Proximity Caves Wizard-Scout | -4/Factory Wizard-Scout | -4/Upper Caves Wizard-Scout | -4/Upper Caves Wizard-Scout | -4/Zhirov Wizard-Scout | -3/Proximity Caves Wizard-Ninja | -3/Research Wizard-Scout | -3/Quarantine Scavenger-Assassin | -3/Protoforge Resources | -11 -10 -10 -10 -9 -8 -8 -8 -8 -6 -6 -6 -6 -6 -6 -5 -5 -5 -5 -5 -4 -4 -4 -4 -4 -3 -3 -3 -3 ----------- Run | Yrd Mat Min Exi Min Mat Sto Rec Scr Fac Was Fac Low Low Dat Pro Fac Upp Upp War Pro Fac Upp Upp Zhi Pro Res Qua Frg Matter Collected 6495 | 210 408 106 131 123 973 527 30 40 270 . 188 70 . . 165 159 35 66 234 . 140 160 157 90 31 163 120 1899 Remotely . | . . . . . . . . . . . . . . . . . . . . . . . . . . . . . Salvage Created 9847 | 104 628 139 . 20 1733 886 106 . 485 . 1072 . . 26 62 764 . . . . 679 84 50 280 99 210 212 2208 Parts 479 | 6 44 5 . 12 92 36 7 . 18 . 32 . . 3 7 46 . . . . 21 4 7 3 11 9 11 105 Haulers Intercepted 31 | . 2 . . . 6 5 . . 3 . 3 . . . . 4 . . . . 5 . . . . 2 . 1 Recyclers Shooed 8 | 1 . . . . 4 . . . 1 . 1 . . . . 1 . . . . . . . . . . . . Parts Field Recycled . | . . . . . . . . . . . . . . . . . . . . . . . . . . . . . Retrieved Matter . | . . . . . . . . . . . . . . . . . . . . . . . . . . . . . Parts Self-Destructed 47 | . . . . . . . . . . . . . 1 . 24 . . . . . . 3 5 3 11 . . . Prevented 4 | . . . . . . . . . . . . . . . 1 . . . . . . . 3 . . . . . Parts Restored . | . . . . . . . . . . . . . . . . . . . . . . . . . . . . . Kills | -11 -10 -10 -10 -9 -8 -8 -8 -8 -6 -6 -6 -6 -6 -6 -5 -5 -5 -5 -5 -4 -4 -4 -4 -4 -3 -3 -3 -3 ------- Run | Yrd Mat Min Exi Min Mat Sto Rec Scr Fac Was Fac Low Low Dat Pro Fac Upp Upp War Pro Fac Upp Upp Zhi Pro Res Qua Frg Combat Hostiles Destroyed 117 | . 17 3 . 6 29 11 2 . 2 . . . . . 2 1 . . . . . . 5 . 7 . . 32 Melee 14 | . . . . . . . . . 1 . . . . . . 1 . . . . . . . . . . . 12 Guns 49 | . 9 3 . . 23 6 1 . . . . . . . . . . . . . . . . . . . . 7 Cannons 30 | . 7 . . . 6 4 1 . . . . . . . . . . . . . . . . . . . . 12 AOE 21 | . . . . 6 . . . . . . . . . . 2 . . . . . . . 5 . 7 . . 1 Classes Destroyed 22 | 2 5 1 . . 4 . . . 2 . . . . . 1 . . . . . 1 1 . . . . 1 4 Worker 13 | . . . . . 3 . . . 1 . 3 . . . . 1 . . . . 3 . . . . 1 1 . Builder 8 | . 1 1 . . 1 . . . . . 1 . . . . 3 . . . . 1 . . . . . . . Tunneler 3 | 2 . 1 . . . . . . . . . . . . . . . . . . . . . . . . . . Hauler 31 | . 2 . . . 6 5 . . 3 . 3 . . . . 4 . . . . 5 . . . . 2 . 1 Recycler 10 | 1 . . . . 3 1 . . . . 4 . . . . . . . . . . . . . . . 1 . Minesweeper 1 | . . . . . . . . . . . . . . . . . . . . . . 1 . . . . . . Mechanic 1 | . . . . . . . . . . . . . . . . . . . . . 1 . . . . . . . Operator 3 | . . . . . . . . . 2 . . . . . . 1 . . . . . . . . . . . . Drone 7 | . . . . . . . . . . . . . . . 2 . . . . . . . . . 2 . . 3 Watcher 21 | . 3 . . . 2 . . . 2 . 2 . . . 2 6 . . . . 3 . . . . . . 1 Swarmer 29 | . 6 . . 6 5 . . . . . . . . . . . . . . . . . 5 . 5 . . 2 Grunt 37 | . 11 2 . . 14 7 . . 1 . . . . . . . . . . . . . . . . . . 2 Brawler 1 | . . . . . . . . . . . . . . . . . . . . . . . . . . . . 1 Duelist 3 | . . . . . 1 . . . . . . . . . . . . . . . . . . . . . . 2 Protector 1 | . . . . . . . . . . . . . . . . . . . . . . . . . . . . 1 Researcher 1 | . . . . . . . . . . . . . . . . . . . . . . . . . . . 1 . Sentry 15 | . . . . . 7 3 2 . . . . . . . . . . . . . . . . . . . . 3 Hunter 9 | . . . . . 2 1 . . . . . . . . . 1 . . . . . . . . . . . 5 Programmer 2 | . . . . . . . . . 1 . . . . . . . . . . . . . . . . . . 1 Hotshot 1 | . . . . . . . . . . . . . . . . . . . . . . . . . . . . 1 Immortal 2 | . . . . . . . . . . . . . . . . . . . . . . . . . . . . 2 Striker 6 | . . . . . . . . . . . . . . . . . . . . . . . . . . . . 6 Executioner 3 | . . . . . . . . . . . . . . . . . . . . . . . . . . . . 3 Decomposer 3 | . . . . . . . . . . . . . . . . . . . . . . 3 . . . . . . Assembled 1 | . . 1 . . . . . . . . . . . . . . . . . . . . . . . . . . Best Kill Streak 6 | 2 3 2 . 3 4 4 1 . 2 . 4 . . 1 2 3 . . . . 6 1 5 . 5 3 2 6 Combat Bots Only 6 | . 3 2 . 3 3 4 1 . 1 . . . . . 2 1 . . . . . . 5 . 5 . . 6 Max Kills in Single Turn 3 | 1 1 1 . 3 2 1 1 . 1 . 1 . . 1 1 1 . . . . 1 1 2 . 2 1 1 1 Gunslinging . | . . . . . . . . . . . . . . . . . . . . . . . . . . . . . Exploded 3 | . . . . 3 . . . . . . . . . . 1 . . . . . . . 2 . 2 . . 1 Melee 1 | . . . . . . . . . 1 . . . . . . 1 . . . . . . . . . . . 1 Uniques/NPCs Destroyed 1 | . . . . . . . . . . . . . . 1 . . . . . . . . . . . . . . Data Miner (-6/Data Miner) Combat | -11 -10 -10 -10 -9 -8 -8 -8 -8 -6 -6 -6 -6 -6 -6 -5 -5 -5 -5 -5 -4 -4 -4 -4 -4 -3 -3 -3 -3 -------- Run | Yrd Mat Min Exi Min Mat Sto Rec Scr Fac Was Fac Low Low Dat Pro Fac Upp Upp War Pro Fac Upp Upp Zhi Pro Res Qua Frg Hostile Shots Fired 1056 | . 64 44 . 13 152 84 2 . 8 . . . 4 2 . 8 . . 19 12 13 . 17 . 31 14 77 492 Missed 386 | . 15 10 . 4 38 23 1 . 2 . . . 2 1 . 5 . . 13 8 6 . 7 . 14 6 51 180 Hits 670 | . 49 34 . 9 114 61 1 . 6 . . . 2 1 . 3 . . 6 4 7 . 10 . 17 8 26 312 Melee 28 | . . 6 . . 1 . . . . . . . . . . . . . . . . . . . . . . 21 Projectile 642 | . 49 28 . 9 113 61 1 . 6 . . . 2 1 . 3 . . 6 4 7 . 10 . 17 8 26 291 AOE 6 | . . . . . . . . . . . . . . . . . . . . . . . . . 6 . . . Critical Strikes 42 | . 2 1 . . 5 6 . . 1 . . . . . . 1 . . 1 . . . . . . . 1 24 Actively Blocked 26 | . . . . . . . . . . . . . . . . . . . 1 . . . . . . . 1 24 Part Disruptions 1 | . . . . . . . . . . . . . . . . . . . . . . . . . . 1 . . Damage Taken 14217 | . 620 493 . 76 1630 865 14 . 118 . . . 28 48 . 70 . . 158 80 93 . 194 . 558 187 367 8618 Core 1810 | . 88 48 . 29 118 71 . . 23 . . . . . . . . . 34 . 27 . 44 . 5 45 21 1257 Absorbed by Shields 30 | . . . . . . . . . . . . . . . . . . . . . . . . . . . . 30 Redirected to Shielding 367 | . . . . . . . . . . . . . . . . 15 . . 30 22 . . 23 . . . 90 187 Regen/Repaired (Parts) 796 | . 195 . . . 209 . . . 18 . . . . . . 30 . . 3 . 189 . . . . 152 . . Core Remaining (%) 80 | 100 . . . 34 . . . 65 . . . . . . 97 . . . . 96 . . . . 93 . . . Volleys Fired 537 | 8 61 28 . 5 129 67 3 . . . . . . . 2 . 8 8 4 4 22 19 15 . 5 15 20 114 Largest 2 | 2 2 2 . 2 2 2 2 . . . . . . . 1 . 1 1 1 1 1 1 1 . 1 1 1 2 Hottest 186 | 90 115 100 . 106 110 123 123 . . . . . . . 33 . 90 90 90 90 90 90 90 . 90 90 105 186 Shots Fired 867 | 16 119 44 . 7 249 128 7 . . . . . . . 2 . 8 8 4 4 22 19 15 . 5 15 21 174 Gun 566 | 16 91 36 . 3 210 101 3 . . . . . . . . . . . . . 4 . . . . . . 102 Cannon 276 | . 28 8 . . 39 24 4 . . . . . . . . . 8 8 4 4 18 19 8 . 1 15 21 67 Launcher 25 | . . . . 4 . 3 . . . . . . . . 2 . . . . . . . 7 . 4 . . 5 Special . | . . . . . . . . . . . . . . . . . . . . . . . . . . . . . Kinetic 369 | . 28 8 . . 98 70 . . . . . . . . . . . . . . 4 . . . . . . 161 Thermal 471 | 16 91 36 . 3 151 55 7 . . . . . . . . . 8 8 4 4 18 19 8 . 1 15 21 6 Explosive 20 | . . . . 4 . 3 . . . . . . . . 2 . . . . . . . 7 . 4 . . . Electromagnetic 7 | . . . . . . . . . . . . . . . . . . . . . . . . . . . . 7 Robot Hit Streak 20 | 11 6 8 . 6 13 12 16 . . . . . . . 18 . . . 20 . 2 5 4 . . 2 3 9 Robot Miss Streak 6 | 2 4 3 . . 5 2 . . . . . . . . . . . . 1 . 5 2 1 . 1 2 . 6 Penetration Max 1 | . . . . . . . . . . . . . . . . . . . . . . . . . . . . 1 Secondary Targets 1 | . . . . . 1 . . . . . . . . . . . . . . . . . . . . . . . Max Gunslinging Chain 1 | . . . . . 1 . . . . . . . . . . . . . . . . . . . . . . . Shots Hit Robots 675 | 11 72 30 4 2 186 97 5 . 26 . 22 . . 1 4 20 . . 3 . 37 9 4 5 . 8 4 125 Core Hits 319 | 4 32 10 . 8 91 29 3 . 3 . 12 . . 1 3 13 . . . . 14 2 6 2 11 3 3 69 Critical Kills 1 | . . . . . . . . . . . . . . . . . . . . . . . . . . . . 1 Critical Parts Destroyed 4 | . . . . . . . . . 3 . . . . . . . . . . . . . . . . . . 1 Critical Strikes 44 | . 3 1 . 1 8 1 . . 3 . 1 . . . . 4 . . . . 7 . . . . . . 15 Burn 14 | . 3 1 . 1 8 1 . . . . . . . . . . . . . . . . . . . . . . Destroy 3 | . . . . . . . . . . . . . . . . . . . . . . . . . . . . 3 Blast 3 | . . . . . . . . . . . . . . . . . . . . . . . . . . . . 3 Smash 3 | . . . . . . . . . 3 . . . . . . . . . . . . . . . . . . . Sever 8 | . . . . . . . . . . . 1 . . . . . . . . . 7 . . . . . . . Impale 6 | . . . . . . . . . . . . . . . . 4 . . . . . . . . . . . 2 Sunder 7 | . . . . . . . . . . . . . . . . . . . . . . . . . . . . 7 Melee Attacks 397 | . . . 4 . 2 2 . . 63 . 67 . . 23 2 75 1 1 9 1 65 . 2 5 . 23 11 41 Impact 20 | . . . . . . . . . 18 . . . . . . . . . 2 . . . . . . . . . Slashing 283 | . . . . . 2 2 . . 45 . 67 . . 4 . 44 1 1 7 1 65 . 2 5 . 22 11 4 Piercing 58 | . . . . . . . . . . . . . . 19 2 31 . . . . . . . . . . . 6 Entropic 32 | . . . . . . . . . . . . . . . . . . . . . . . . . . 1 . 31 Sneak Attacks 52 | . . . 4 . . . . . 5 . 13 . . 1 1 10 . . . . 12 . . . . 4 1 1 Combat Hostiles . | . . . . . . . . . . . . . . . . . . . . . . . . . . . . . Follow-up Attacks 7 | . . . . . . . . . 1 . 2 . . . . 1 . . . . . . . . . . . 3 Damage Inflicted 22771 | 135 1085 435 . 316 3463 1761 101 . 1471 . 1519 . . 80 305 1262 . . 103 . 2072 311 418 382 530 575 318 6129 Guns 7606 | 135 747 318 . 27 2960 1341 53 . . . . . . . . . . . . . . . . . . . . 2025 Cannons 3762 | . 338 110 . . 503 420 42 . . . . . . . . . . . 103 . 67 311 . . . 110 35 1723 Explosions 1514 | . . . . 289 . . . . . . . . . . 143 . . . . . . . 418 . 530 . . 134 Melee 9876 | . . . . . . . . . 1471 . 1519 . . 80 162 1262 . . . . 2005 . . 382 . 465 283 2247 Ramming 13 | . . 7 . . . . 6 . . . . . . . . . . . . . . . . . . . . . Kinetic 6261 | . 338 110 . . 1134 931 . . . . . . . . . . . . . . . . . . . . . 3748 Thermal 5107 | 135 747 318 . 27 2329 830 95 . . . . . . . . . . . 103 . 67 311 . . . 110 35 . Explosive 1380 | . . . . 289 . . . . . . . . . . 143 . . . . . . . 418 . 530 . . . Electromagnetic 134 | . . . . . . . . . . . . . . . . . . . . . . . . . . . . 134 Impact 695 | . . . . . . . . . 695 . . . . . . . . . . . . . . . . . . . Slashing 5692 | . . . . . . . . . 776 . 1519 . . . . 372 . . . . 2005 . . 382 . 269 283 86 Piercing 1351 | . . . . . . . . . . . . . . 80 162 890 . . . . . . . . . . . 219 Entropic 2138 | . . . . . . . . . . . . . . . . . . . . . . . . . . 196 . 1942 Highest Corruption 13 | . 1 6 6 6 . . 1 . . 7 7 7 8 8 8 1 1 1 1 . . . . . . 2 2 13 Average Corruption 5 | . 1 1 6 6 . . 1 . . 7 7 7 7 8 8 1 1 1 1 . . . . . . 1 2 11 Corruption Purged . | . . . . . . . . . . . . . . . . . . . . . . . . . . . . . Corruption Blocked . | . . . . . . . . . . . . . . . . . . . . . . . . . . . . . Effects 204 | . 7 8 28 22 . . 1 . . . 25 3 2 7 9 5 1 2 . . . . . . . . 6 78 Message Errors 50 | . . 4 11 5 . . . . . . 6 . . 2 1 3 1 1 . . . . . . . . 4 12 Matter Fused 41 | . 2 3 3 4 . . . . . . 5 1 . 1 5 1 . . . . . . . . . . . 16 Heat Flow Errors 20 | . . . 2 3 . . . . . . 3 . . 2 . 1 . . . . . . . . . . . 9 Energy Discharges 29 | . 2 . 5 3 . . . . . . 5 2 . 1 1 . . . . . . . . . . . . 10 Parts Rejected 4 | . . . . . . . . . . . . . . . . . . . . . . . . . . . . 4 Parts Fused 1 | . 1 . . . . . . . . . . . . . . . . . . . . . . . . . . . Data Loss (minor) 30 | . 1 1 4 5 . . . . . . 4 . 2 1 1 . . 1 . . . . . . . . 1 9 Data Loss (major) 13 | . 1 . 2 1 . . . . . . 2 . . . 1 . . . . . . . . . . . . 6 Misfires 3 | . . . . 1 . . 1 . . . . . . . . . . . . . . . . . . . 1 . Alerts 4 | . . . 1 . . . . . . . . . . . . . . . . . . . . . . . . 3 Misdirections 4 | . . . . . . . . . . . . . . . . . . . . . . . . . . . . 4 Weapon Failures 5 | . . . . . . . . . . . . . . . . . . . . . . . . . . . . 5 Overload Shots . | . . . . . . . . . . . . . . . . . . . . . . . . . . . . . Overflow Damage 2066 | . . 2 . . 2 . . . 468 . 288 . . . 71 175 . . . . 199 105 50 156 . 172 102 276 Projectiles 124 | . . 2 . . 2 . . . . . . . . . . . . . . . 3 105 . . . . . 12 Explosions 54 | . . . . . . . . . . . . . . . 4 . . . . . . . 50 . . . . . Melee 1888 | . . . . . . . . . 468 . 288 . . . 67 175 . . . . 196 . . 156 . 172 102 264 Knockbacks 29 | . 5 3 . . 10 . . . 1 . . . . . . . . . . . . . . . . . . 10 Impact 1 | . . . . . . . . . 1 . . . . . . . . . . . . . . . . . . . Kinetic 28 | . 5 3 . . 10 . . . . . . . . . . . . . . . . . . . . . . 10 Secondary . | . . . . . . . . . . . . . . . . . . . . . . . . . . . . . Self-Inflicted Damage 32 | . . . . . . . . . . . . . . . . . . . . . . . 32 . . . . . Shots 1 | . . . . . . . . . . . . . . . . . . . . . . . 1 . . . . . Rammed 3 | . . 1 . . . . 2 . . . . . . . . . . . . . . . . . . . . . Targets Rammed 3 | . . 1 . . . . 2 . . . . . . . . . . . . . . . . . . . . . Kicked . | . . . . . . . . . . . . . . . . . . . . . . . . . . . . . Crushed . | . . . . . . . . . . . . . . . . . . . . . . . . . . . . . Highest Temperature 268 | 90 213 60 268 114 91 18 . . . . 126 . . 187 . 148 109 130 86 83 101 192 77 . . . . 217 Average Temperature 45 | 33 56 17 132 50 18 10 . . . . 61 . . 74 . 88 43 54 35 37 38 68 32 . . . . 90 Received Heat Transfer 2538 | . 345 216 . . 684 387 . . 27 . . . . . . . . . 18 . 9 . . . 18 . 48 786 Siege Activations . | . . . . . . . . . . . . . . . . . . . . . . . . . . . . . Martial Activations . | . . . . . . . . . . . . . . . . . . . . . . . . . . . . . Shielding Activations . | . . . . . . . . . . . . . . . . . . . . . . . . . . . . . Robots Disrupted . | . . . . . . . . . . . . . . . . . . . . . . . . . . . . . Combat Hostiles . | . . . . . . . . . . . . . . . . . . . . . . . . . . . . . Robots Corrupted 5 | . . . . . . . . . 5 . . . . . . . . . . . . . . . . . . . Combat Hostiles 1 | . . . . . . . . . 1 . . . . . . . . . . . . . . . . . . . Parts Fried 2 | . . . . . . . . . 2 . . . . . . . . . . . . . . . . . . . Impact Corruptions 9 | . . . . . . . . . 9 . . . . . . . . . . . . . . . . . . . Robots Melted 3 | . 1 . . . . 2 . . . . . . . . . . . . . . . . . . . . . . Combat Hostiles 2 | . 1 . . . . 1 . . . . . . . . . . . . . . . . . . . . . . Parts Melted 23 | 1 3 1 . . 8 4 . . . . . . . . . . . . . . . . . . . . . 6 Heat Transferred 10806 | 359 2030 962 . 148 4884 1591 185 . . . . . . . . . . . 92 . 74 333 . . . 111 37 . Parts Sabotaged . | . . . . . . . . . . . . . . . . . . . . . . . . . . . . . Parts Stolen . | . . . . . . . . . . . . . . . . . . . . . . . . . . . . . Parts Stripped . | . . . . . . . . . . . . . . . . . . . . . . . . . . . . . Power Chain Reactions . | . . . . . . . . . . . . . . . . . . . . . . . . . . . . . Alert | -11 -10 -10 -10 -9 -8 -8 -8 -8 -6 -6 -6 -6 -6 -6 -5 -5 -5 -5 -5 -4 -4 -4 -4 -4 -3 -3 -3 -3 ------- Run | Yrd Mat Min Exi Min Mat Sto Rec Scr Fac Was Fac Low Low Dat Pro Fac Upp Upp War Pro Fac Upp Upp Zhi Pro Res Qua Frg Maximum Alert Level 2 | . . . . . 1 2 1 . . . . . . . . . . . . . . . . . . . . 2 Low Security (%) 88 | 100 100 100 . 100 69 72 95 . 100 100 100 . . . . 100 . . . . 100 . . . . 100 100 66 Level 1 7 | . . . . . 30 5 4 . . . . . . . . . . . . . . . . . . . . 10 Level 2 4 | . . . . . . 21 . . . . . . . . . . . . . . . . . . . . . 22 Level 3 . | . . . . . . . . . . . . . . . . . . . . . . . . . . . . . Level 4 . | . . . . . . . . . . . . . . . . . . . . . . . . . . . . . Level 5 . | . . . . . . . . . . . . . . . . . . . . . . . . . . . . . High Security . | . . . . . . . . . . . . . . . . . . . . . . . . . . . . . Max Security . | . . . . . . . . . . . . . . . . . . . . . . . . . . . . . Peak Influence 641 | 10 159 60 . 77 339 492 218 . 33 8 30 . . . . 72 . . . . 36 . . . . 87 122 641 Initial 178 | . . 60 . . 11 142 178 . . 8 . . . . . 19 . . . . 12 . . . . 87 . 45 Average 82 | 3 85 14 . 14 142 197 100 . 8 7 7 . . . . 24 . . . . 6 . . . . 13 52 179 Influence Increases 7288 | 15 619 174 . 152 1051 967 177 . 275 . 217 . 15 20 82 537 60 . 337 30 308 5 285 10 180 90 316 1366 Destroy 0b10 Robot/C 2880 | . 340 120 . 120 580 460 40 . 40 . . . . 20 40 60 . . 240 . . . 140 . 100 . 20 560 Destroy 0b10 Robot/NC 515 | 15 30 10 . . 75 40 . . 40 . 65 . . . 20 75 . . . . 65 5 . 10 10 15 10 30 Destroy Leader 658 | . 80 30 . 20 176 140 . . 20 . 10 . . . . 40 . . . . 16 . 10 . 10 4 . 102 Allied During Kill 288 | . . 14 . . . 151 . . . . . . . . 22 34 . . 67 . . . . . . . . . Trap Triggered on 0b10 10 | . . . . . . . . . . . . . . . . 10 . . . . . . . . . . . . Successful Hack 422 | . 61 . . . 72 7 32 . 41 . 78 . . . . 69 . . . . 16 . . . . 17 23 6 Select Force Hacks 240 | . 30 . . . 60 30 90 . . . . . . . . . . . . . 30 . . . . . . . Disable Machine 525 | . 30 . . . 15 90 15 . 45 . 30 . . . . 15 . . . . 30 . . . . . 75 180 Destroy Structure 460 | . 3 . . 12 13 19 . . 29 . 34 . . . . 84 . . . . 76 . . . . 54 38 98 Partial Spotted 75 | . . . . . . . . . 15 . . . . . . . . . . . 30 . . . . . 30 . Lose Combat Pursuer 1215 | . 45 . . . 60 30 . . 45 . . . 15 . . 150 60 . 30 30 45 . 135 . 60 . 120 390 Influence Decreases 6688 | 15 464 329 . 123 743 847 615 19 250 25 217 . 15 20 50 512 77 40 252 95 298 35 100 195 50 220 235 847 Entered New Map 1035 | . . 95 . . 18 195 279 19 . 17 . . . . . 13 22 8 . 85 8 12 . 185 . 43 . 36 Time Decay 4535 | 15 454 188 . 123 545 422 336 . 235 8 217 . 15 20 50 399 55 32 112 10 265 23 80 10 50 177 213 481 Lost Part 422 | . 10 20 . . 30 30 . . . . . . . . . . . . . . . . . . . . 22 310 Lost Ally 508 | . . 26 . . . 200 . . . . . . . . . 100 . . 140 . 2 . 20 . . . . 20 Purge Threat 188 | . . . . . 150 . . . 15 . . . . . . . . . . . 23 . . . . . . . Squads Dispatched 53 | . 4 . . . 5 4 . . 3 . 7 . . . 2 11 . . . . 8 . 1 . . 1 3 4 Investigation 25 | . 3 . . . 4 1 . . . . 5 . . . 2 5 . . . . 4 . . . . . . 1 Extermination 15 | . . . . . . . . . 3 . 2 . . . . 4 . . . . 3 . . . . 1 1 1 Reinforcement 12 | . 1 . . . 1 3 . . . . . . . . . 2 . . . . 1 . . . . . 2 2 Assault 1 | . . . . . . . . . . . . . . . . . . . . . . . 1 . . . . . Garrison . | . . . . . . . . . . . . . . . . . . . . . . . . . . . . . Intercept . | . . . . . . . . . . . . . . . . . . . . . . . . . . . . . Searches Triggered . | . . . . . . . . . . . . . . . . . . . . . . . . . . . . . Unchained Authorized 1 | . . . . . . . . . . . . . . . . . . . . . . . . . . . 1 . Construction Impeded 1 | . . . . . . 1 . . . . . . . . . . . . . . . . . . . . . . Haulers Reinforced . | . . . . . . . . . . . . . . . . . . . . . . . . . . . . . Active Scanning Responses . | . . . . . . . . . . . . . . . . . . . . . . . . . . . . . Cargo Convoy Interrupts . | . . . . . . . . . . . . . . . . . . . . . . . . . . . . . Stealth | -11 -10 -10 -10 -9 -8 -8 -8 -8 -6 -6 -6 -6 -6 -6 -5 -5 -5 -5 -5 -4 -4 -4 -4 -4 -3 -3 -3 -3 --------- Run | Yrd Mat Min Exi Min Mat Sto Rec Scr Fac Was Fac Low Low Dat Pro Fac Upp Upp War Pro Fac Upp Upp Zhi Pro Res Qua Frg Distress Signals 34 | . 1 . . . 4 6 . . 1 . . . . . . 3 . . 1 . . . . . 7 . . 11 Communications Jammed 7 | . . . . . . . . . . . . . . . 7 . . . . . . . . . . . . . Distress Signals 5 | . . . . . . . . . . . . . . . 5 . . . . . . . . . . . . . Times Spotted 401 | . 30 9 . 3 55 28 1 . 11 4 3 . 1 4 6 24 1 . 22 2 15 . 10 . 16 6 14 136 Peak Tracking Total 17 | . 4 16 . 3 5 7 1 . 4 4 1 . 1 4 3 7 4 . 10 2 2 . 6 . 9 4 9 17 Tactical Retreats 43 | . 2 1 . . 3 2 . . 2 . . . 1 . . 5 1 . 2 1 2 . 5 . 1 . 3 12 Traps | -11 -10 -10 -10 -9 -8 -8 -8 -8 -6 -6 -6 -6 -6 -6 -5 -5 -5 -5 -5 -4 -4 -4 -4 -4 -3 -3 -3 -3 ------- Run | Yrd Mat Min Exi Min Mat Sto Rec Scr Fac Was Fac Low Low Dat Pro Fac Upp Upp War Pro Fac Upp Upp Zhi Pro Res Qua Frg Traps Triggered 11 | . 2 . . . 2 1 . . 1 . 2 . . . . 1 . . . . . . . . 1 . . 1 Indirectly . | . . . . . . . . . . . . . . . . . . . . . . . . . . . . . Trap Hack Attempts . | . . . . . . . . . . . . . . . . . . . . . . . . . . . . . Triggered . | . . . . . . . . . . . . . . . . . . . . . . . . . . . . . Disarmed . | . . . . . . . . . . . . . . . . . . . . . . . . . . . . . Reprogrammed 8 | . . . . . . . . . . . . . . . . 6 . . . . . . . . . . 2 . Reused 1 | . . . . . . . . . . . . . . . . 1 . . . . . . . . . . . . Traps Extracted . | . . . . . . . . . . . . . . . . . . . . . . . . . . . . . Installed . | . . . . . . . . . . . . . . . . . . . . . . . . . . . . . Triggered 1 | . . . . . . . . . . . . . . . . 1 . . . . . . . . . . . . Machines | -11 -10 -10 -10 -9 -8 -8 -8 -8 -6 -6 -6 -6 -6 -6 -5 -5 -5 -5 -5 -4 -4 -4 -4 -4 -3 -3 -3 -3 ---------- Run | Yrd Mat Min Exi Min Mat Sto Rec Scr Fac Was Fac Low Low Dat Pro Fac Upp Upp War Pro Fac Upp Upp Zhi Pro Res Qua Frg Machines Disabled 36 | . 2 . . . 1 6 1 . 3 . 2 . . 1 . 1 . . . . 2 . . . . . 5 12 Max in Single Turn 5 | . 1 . . . 1 1 1 . 1 . 1 . . 1 . 1 . . . . 1 . . . . . 1 5 Garrison Access 6 | . . . . . 1 . . . . . . . . . . 1 . . . . 3 . . . . . 1 . Machines Repaired . | . . . . . . . . . . . . . . . . . . . . . . . . . . . . . Machines Dismantled . | . . . . . . . . . . . . . . . . . . . . . . . . . . . . . Machines Sabotaged . | . . . . . . . . . . . . . . . . . . . . . . . . . . . . . Overloaded Fab Kills . | . . . . . . . . . . . . . . . . . . . . . . . . . . . . . Hacking | -11 -10 -10 -10 -9 -8 -8 -8 -8 -6 -6 -6 -6 -6 -6 -5 -5 -5 -5 -5 -4 -4 -4 -4 -4 -3 -3 -3 -3 --------- Run | Yrd Mat Min Exi Min Mat Sto Rec Scr Fac Was Fac Low Low Dat Pro Fac Upp Upp War Pro Fac Upp Upp Zhi Pro Res Qua Frg Machines Accessed 173 | . 9 . 4 . 14 8 9 10 16 . 16 1 1 4 3 21 . 3 5 . 20 1 . 4 . 8 9 7 Terminals 83 | . 7 . . . 8 6 6 . 10 . 9 . . . 1 10 . . . . 8 . . . . 6 7 5 Fabricators 10 | . . . . . . . . . 2 . 2 . . . 1 4 . . . . 1 . . . . . . . Repair Stations 9 | . 1 . . . 1 . . . 1 . . . . . . 1 . . . . 3 . . . . 1 1 . Recycling Units 20 | . 1 . . . 2 1 3 . . . 4 . . . 1 2 . . . . 4 . . . . . . 2 Scanalyzers 10 | . . . . . 2 . . . 2 . 1 . . . . 3 . . . . 1 . . . . 1 . . Garrison Access 8 | . . . . . 1 1 . . 1 . . . . . . 1 . . . . 3 . . . . . 1 . Total Hacks 501 | . 31 . 30 . 34 15 26 69 33 . 34 1 1 28 4 60 . 6 10 . 44 1 . 17 . 24 20 13 Successful 357 | . 16 . 30 . 17 8 9 69 14 . 17 1 1 28 2 36 . 6 10 . 33 1 . 17 . 15 16 11 Failed 138 | . 15 . . . 17 7 16 . 18 . 16 . . . 2 23 . . . . 10 . . . . 8 4 2 Catastrophic 28 | . 1 . . . . 2 3 . 8 . 4 . . . . 7 . . . . . . . . . 1 1 1 Database Lockouts 6 | . . . . . . . 1 . 1 . 1 . . . . 1 . . . . 1 . . . . 1 . . Manual 164 | . 8 . . . 18 4 24 . 11 . 22 . . . 3 30 . . 1 . 17 . . . . 10 5 11 Terminals 237 | . 23 . . . 27 12 22 . 23 . 22 . . . 1 37 . . . . 23 . . . . 18 18 11 Fabricators 16 | . . . . . . . . . 2 . 3 . . . 2 7 . . . . 2 . . . . . . . Repair Stations 27 | . 7 . . . 2 . . . 2 . . . . . . 3 . . . . 8 . . . . 4 1 . Recycling Units 27 | . 1 . . . 2 2 4 . . . 7 . . . 1 4 . . . . 4 . . . . . . 2 Scanalyzers 21 | . . . . . 2 . . . 4 . 2 . . . . 8 . . . . 3 . . . . 2 . . Garrison Access 10 | . . . . . 1 1 . . 2 . . . . . . 1 . . . . 4 . . . . . 1 . Terminal Hacks 266 | . 10 . 30 . 10 7 6 69 7 . 6 1 1 28 1 16 . 6 10 . 13 1 . 17 . 9 12 6 Record 124 | . . . 30 . . . . 69 . . . . . 11 . . . 4 3 . . . . 5 . . 2 . Part Schematic 20 | . . . . . . . . . . . 1 . . 9 . 2 . . . . 4 . . 4 . . . . Robot Schematic 5 | . . . . . . . . . . . . . . 5 . . . . . . . . . . . . . . Robot Analysis 13 | . 1 . . . 1 1 5 . . . 1 . . . . . . . . . . . . 4 . . . . Prototype ID Bank 28 | . 7 . . . 2 1 1 . 3 . . . . 3 . 1 . . 5 . 1 . . 4 . . . . Open Door 10 | . . . . . . 1 . . . . . 1 1 . 1 . . 2 2 . . 1 . . . 1 . . Branch Access Points 4 | . . . . . 1 . . . 1 . 1 . . . . . . . . . . . . . . 1 . . Machine Index 4 | . . . . . . . . . . . . . . . . . . . . . . . . . . 1 2 1 Terminal Index 2 | . . . . . . . . . . . . . . . . 1 . . . . . . . . . 1 . . Fabricator Index 1 | . . . . . . . . . . . . . . . . . . . . . . . . . . 1 . . Scanalyzer Index 2 | . . . . . . 1 . . . . . . . . . . . . . . . . . . . . 1 . Unreport Threat 4 | . . . . . 1 . . . 1 . . . . . . . . . . . 2 . . . . . . . Locate Traps 14 | . 2 . . . 2 1 . . 1 . 1 . . . . 2 . . . . . . . . . 1 3 1 Reprogram Traps 2 | . . . . . . . . . . . . . . . . 1 . . . . . . . . . . 1 . Dispatch Records 1 | . . . . . . . . . . . . . . . . . . . . . 1 . . . . . . . Maintenance Status 2 | . . . . . . . . . . . . . . . . . . . . . . . . . . . 1 1 Security Status 1 | . . . . . . . . . . . . . . . . 1 . . . . . . . . . . . . Recall Investigation 4 | . . . . . . . . . . . . . . . . 3 . . . . 1 . . . . . . . Recall Extermination 7 | . . . . . . . . . 1 . . . . . . 3 . . . . 3 . . . . . . . Recall Reinforcements 1 | . . . . . . . . . . . 1 . . . . . . . . . . . . . . . . . Hauler Manifests 8 | . . . . . 2 2 . . . . 1 . . . . 1 . . . . 1 . . . . 1 . . Registered Components 4 | . . . . . 1 . . . . . . . . . . . . . . . . . . . . 1 1 1 Registered Prototypes 4 | . . . . . . . . . . . . . . . . 1 . . . . . . . . . 1 1 1 Zone Layout 1 | . . . . . . . . . . . . . . . . . . . . . . . . . . . . 1 Fabricator Hacks 8 | . . . . . . . . . 1 . . . . . . 6 . . . . 1 . . . . . . . Network Status 2 | . . . . . . . . . 1 . . . . . . . . . . . 1 . . . . . . . Load Schematic 3 | . . . . . . . . . . . . . . . . 3 . . . . . . . . . . . . Build 3 | . . . . . . . . . . . . . . . . 3 . . . . . . . . . . . . Repair Station Hacks 24 | . 5 . . . 2 . . . 2 . . . . . . 2 . . . . 8 . . . . 4 1 . Scan Component 13 | . 3 . . . 1 . . . 1 . . . . . . 1 . . . . 4 . . . . 2 1 . Repair 11 | . 2 . . . 1 . . . 1 . . . . . . 1 . . . . 4 . . . . 2 . . Recycling Unit Hacks 1 | . . . . . . . . . . . . . . . . . . . . . . . . . . . . 1 Retrieve Matter 1 | . . . . . . . . . . . . . . . . . . . . . . . . . . . . 1 Scanalyzer 15 | . . . . . 2 . . . 2 . 1 . . . . 7 . . . . 2 . . . . 1 . . Insert Component 5 | . . . . . 2 . . . 1 . . . . . . 2 . . . . . . . . . . . . Retrieve Study 10 | . . . . . . . . . 1 . 1 . . . . 5 . . . . 2 . . . . 1 . . Garrison Access Hacks 6 | . . . . . 1 . . . . . . . . . . 1 . . . . 3 . . . . . 1 . Seal Access 6 | . . . . . 1 . . . . . . . . . . 1 . . . . 3 . . . . . 1 . Unauthorized Hacks 37 | . 1 . . . 2 1 3 . 2 . 10 . . . 1 4 . . . . 6 . . . . 1 2 4 Terminals 15 | . . . . . . . . . 2 . 5 . . . . 1 . . . . 1 . . . . 1 2 3 Assimilate 8 | . . . . . . . . . 1 . 1 . . . . 1 . . . . 1 . . . . 1 2 1 Botnet 2 | . . . . . . . . . . . 2 . . . . . . . . . . . . . . . . . Disrupt 1 | . . . . . . . . . . . . . . . . . . . . . . . . . . . . 1 Operators 3 | . . . . . . . . . 1 . 1 . . . . . . . . . . . . . . . . 1 Skim 1 | . . . . . . . . . . . 1 . . . . . . . . . . . . . . . . . Fabricators 3 | . . . . . . . . . . . 1 . . . . 1 . . . . 1 . . . . . . . Fabnet 2 | . . . . . . . . . . . 1 . . . . 1 . . . . . . . . . . . . Haulers 1 | . . . . . . . . . . . . . . . . . . . . . 1 . . . . . . . Repair Stations . | . . . . . . . . . . . . . . . . . . . . . . . . . . . . . Recycling Units 19 | . 1 . . . 2 1 3 . . . 4 . . . 1 2 . . . . 4 . . . . . . 1 Tunnel 8 | . 1 . . . 2 1 3 . . . . . . . . . . . . . 1 . . . . . . . Fedlink 11 | . . . . . . . . . . . 4 . . . 1 2 . . . . 3 . . . . . . 1 Scanalyzers . | . . . . . . . . . . . . . . . . . . . . . . . . . . . . . Garrison Access . | . . . . . . . . . . . . . . . . . . . . . . . . . . . . . Data Cores Recovered 1 | . . . . . . . . . 1 . . . . . . . . . . . . . . . . . . . Used 1 | . . . . . . . . . 1 . . . . . . . . . . . . . . . . . . . Hacking Detections 95 | . 8 . . . 9 8 5 . 14 . 11 . . . 1 16 . . . . 8 . . . . 6 5 4 Full Trace Events 11 | . 1 . . . 1 . 5 . . . 1 . . . . 3 . . . . . . . . . . . . Feedback Events 2 | . 1 . . . . . 1 . . . . . . . . . . . . . . . . . . . . . Corruption 2 | . 1 . . . . . 1 . . . . . . . . . . . . . . . . . . . . . Feedback Blocked . | . . . . . . . . . . . . . . . . . . . . . . . . . . . . . Robot Schematics Acquired 5 | . . . . . . . . . . . . . . 5 . . . . . . . . . . . . . . Robots Built . | . . . . . . . . . . . . . . . . . . . . . . . . . . . . . Authchips . | . . . . . . . . . . . . . . . . . . . . . . . . . . . . . Time . | . . . . . . . . . . . . . . . . . . . . . . . . . . . . . Total Robot Build Rating . | . . . . . . . . . . . . . . . . . . . . . . . . . . . . . Part Schematics Acquired 22 | . . . . . . . . . . . 1 . . 9 . 2 . . . . 4 . . 4 . . 2 . Parts Built 3 | . . . . . . . . . . . . . . . . 3 . . . . . . . . . . . . Authchips . | . . . . . . . . . . . . . . . . . . . . . . . . . . . . . Time 388 | . . . . . . . . . . . . . . . . 388 . . . . . . . . . . . . Total Part Build Rating 17 | . . . . . . . . . . . . . . . . 17 . . . . . . . . . . . . Part Studies Acquired 9 | . . . . . . . . . 1 . . . . . . 5 . . . . 2 . . . . 1 . . Parts Repaired 11 | . 2 . . . 1 . . . 1 . . . . . . 1 . . . . 4 . . . . 2 . . Time 341 | . 52 . . . 38 . . . 19 . . . . . . 30 . . . . 142 . . . . 60 . . Parts Recycled . | . . . . . . . . . . . . . . . . . . . . . . . . . . . . . Recycled Matter . | . . . . . . . . . . . . . . . . . . . . . . . . . . . . . Retrieved Matter . | . . . . . . . . . . . . . . . . . . . . . . . . . . . . . Retrieved Components . | . . . . . . . . . . . . . . . . . . . . . . . . . . . . . Parts Scanalyzed . | . . . . . . . . . . . . . . . . . . . . . . . . . . . . . Part Schematics Acquired . | . . . . . . . . . . . . . . . . . . . . . . . . . . . . . Parts Damaged . | . . . . . . . . . . . . . . . . . . . . . . . . . . . . . Bothacking | -11 -10 -10 -10 -9 -8 -8 -8 -8 -6 -6 -6 -6 -6 -6 -5 -5 -5 -5 -5 -4 -4 -4 -4 -4 -3 -3 -3 -3 ------------ Run | Yrd Mat Min Exi Min Mat Sto Rec Scr Fac Was Fac Low Low Dat Pro Fac Upp Upp War Pro Fac Upp Upp Zhi Pro Res Qua Frg Used RIF Installer . | . . . . . . . . . . . . . . . . . . . . . . . . . . . . . Robots Hacked 11 | . . . 4 . . . . . . . . . . . 1 . . . 3 1 . . 1 . . . . 1 Non-combat 3 | . . . 3 . . . . . . . . . . . . . . . . . . . . . . . . . Combat 8 | . . . 1 . . . . . . . . . . . 1 . . . 3 1 . . 1 . . . . 1 Robot Hacks Applied 4 | . . . 4 . . . . . . . . . . . . . . . . . . . . . . . . . parse_system 4 | . . . 4 . . . . . . . . . . . . . . . . . . . . . . . . . Relay Couplers Released 3 | . . . . . . . . . 3 . . . . . . . . . . . . . . . . . . . Programmers 3 | . . . . . . . . . 3 . . . . . . . . . . . . . . . . . . . Fabnet Peak Effective % 4 | . . . . . . . . . . . . . . . 3 3 3 3 3 4 4 4 4 4 1 1 1 1 Autooverrided 7 | . . . . . . . . . . . . . . . 1 . . . 3 1 . . 1 . . . . 1 Robots Rewired 11 | . . . . . . . . . . . . . . . 6 . . . 5 . . . . . . . . . Allies Hacked 3 | . . . . . . . . . . . . . . . . 2 . . . . 1 . . . . . . . Hacks Repelled 1 | . . . . . . . . . . . . . . . . . . . . . . . . . . 1 . . Allies | -11 -10 -10 -10 -9 -8 -8 -8 -8 -6 -6 -6 -6 -6 -6 -5 -5 -5 -5 -5 -4 -4 -4 -4 -4 -3 -3 -3 -3 -------- Run | Yrd Mat Min Exi Min Mat Sto Rec Scr Fac Was Fac Low Low Dat Pro Fac Upp Upp War Pro Fac Upp Upp Zhi Pro Res Qua Frg Total Allies 35 | . . 3 . . . 10 . . 1 . 1 . . . 7 . . . 8 1 1 . 1 . . 1 . 1 Largest Group 10 | . . 3 . . . 10 . . 1 . 1 1 1 . 6 6 . . 6 . 1 . 1 . . 1 . . Highest-Rated Group 278 | . . 40 . . . 173 . . 26 . 26 26 26 . 217 206 . . 278 . 10 . 30 . . 26 . . Highest-Rated Ally 49 | . . 16 . . . 29 . . 26 . 26 26 26 . 43 43 . . 49 . 10 . 30 . . 26 . . Total Orders 8 | . . . . . . 6 . . 2 . . . . . . . . . . . . . . . . . . . STAY 3 | . . . . . . 2 . . 1 . . . . . . . . . . . . . . . . . . . FOLLOW 5 | . . . . . . 4 . . 1 . . . . . . . . . . . . . . . . . . . Ally Attacks 200 | . . 35 . . . 88 . . . . . . . . 16 10 . . 46 1 . . 4 . . . . . Total Damage 4480 | . . 475 . . . 1284 . . . . . . . . 640 195 . . 1745 13 . . 128 . . . . . Kills 40 | . . 8 . . . 14 . . . . . . . . 2 2 . . 12 . . . 2 . . . . . Allies Corrupted 1 | . . . . . . . . . . . . . . . . . . . . . . . . . . 1 . . Allies Melted 2 | . . . . . . . . . . . . . . . . . . . 1 . . . . . . . . 1 Intel | -11 -10 -10 -10 -9 -8 -8 -8 -8 -6 -6 -6 -6 -6 -6 -5 -5 -5 -5 -5 -4 -4 -4 -4 -4 -3 -3 -3 -3 ------- Run | Yrd Mat Min Exi Min Mat Sto Rec Scr Fac Was Fac Low Low Dat Pro Fac Upp Upp War Pro Fac Upp Upp Zhi Pro Res Qua Frg Active Infowar (turns) 11321 | 6 227 . . . 497 . . 248 786 21 764 86 110 144 211 1439 148 285 687 88 1309 272 265 170 380 750 538 1890 Optics 10306 | . . . . . . . . . 749 21 764 86 110 144 211 1439 148 285 687 88 1309 272 265 170 380 750 538 1890 Sensors 9402 | . . . . . . . . 248 786 21 739 84 110 28 188 1385 145 283 284 64 1304 270 240 170 349 749 472 1483 Terrain 3400 | . . . . . . . . . . . . . . . . . . . . . 1308 272 237 170 351 748 312 2 Structural 2634 | . . . . . . . . . 24 . 497 . . . 2 1437 148 285 215 25 1 . . . . . . . Seismic 730 | 6 227 . . . 497 . . . . . . . . . . . . . . . . . . . . . . . Jamming 187 | . . . . . . . . . . . . . . . 21 28 . . . 13 . . . . . 39 59 27 ECM 2 | . . . . . . . . . 2 . . . . . . . . . . . . . . . . . . . Robot Analysis Total 13 | . 1 . . . 1 1 5 . . . 1 . . . . . . . . . . . . 4 . . . . Derelict Logs Recovered 8 | . . . . 2 . . . . . . . . . . 1 . 1 1 . 1 . 1 1 . . . . . Drone Launches . | . . . . . . . . . . . . . . . . . . . . . . . . . . . . . Drone Recoveries . | . . . . . . . . . . . . . . . . . . . . . . . . . . . . . Exploration | -11 -10 -10 -10 -9 -8 -8 -8 -8 -6 -6 -6 -6 -6 -6 -5 -5 -5 -5 -5 -4 -4 -4 -4 -4 -3 -3 -3 -3 ------------- Run | Yrd Mat Min Exi Min Mat Sto Rec Scr Fac Was Fac Low Low Dat Pro Fac Upp Upp War Pro Fac Upp Upp Zhi Pro Res Qua Frg Turns Passed 21999 | 62 1411 962 1060 798 2824 1025 779 2735 786 21 764 86 110 144 211 1439 148 285 687 88 1309 272 265 170 380 750 538 1890 Spaces Moved 20289 | 30 722 530 649 485 1353 465 471 2028 1299 60 1436 218 323 159 253 1796 227 333 975 146 1598 427 327 276 413 871 779 1640 Core . | . . . . . . . . . . . . . . . . . . . . . . . . . . . . . Treads 6119 | . 642 530 649 485 1353 465 471 1524 . . . . . . . . . . . . . . . . . . . . Legs 829 | 30 80 . . . . . . . . . . . . . . . . . . . . . . . . . . 719 Wheels . | . . . . . . . . . . . . . . . . . . . . . . . . . . . . . Hover 13341 | . . . . . . . . 504 1299 60 1436 218 323 159 253 1796 227 333 975 146 1598 427 327 276 413 871 779 921 Flight . | . . . . . . . . . . . . . . . . . . . . . . . . . . . . . Fastest Speed 30 | 120 120 160 160 160 160 162 162 38 34 34 34 34 34 34 34 34 47 47 40 47 35 47 35 47 30 47 30 35 Average Speed 81 | 120 155 160 160 160 161 162 162 131 34 34 34 34 34 34 34 46 47 47 46 47 46 47 46 47 46 47 46 77 Slowest Speed 240 | 120 160 160 160 160 240 163 162 162 34 34 94 34 34 34 34 94 47 47 47 47 47 47 47 47 47 47 47 170 Overloaded Moves 27 | . . . . . . . . . . . . . . . . . . . . . 4 . 6 . 1 . 10 6 Propulsion Burnouts . | . . . . . . . . . . . . . . . . . . . . . . . . . . . . . Robots Hopped . | . . . . . . . . . . . . . . . . . . . . . . . . . . . . . Potential Cave-ins 4 | . . . . . . . . . . . . . . . . . . . . . . . . . . 2 . 2 Cave-ins Triggered . | . . . . . . . . . . . . . . . . . . . . . . . . . . . . . Exploration Rate (%) 63 | 4 96 85 91 99 89 66 77 93 47 72 43 45 63 82 42 47 53 57 92 48 42 70 65 61 70 24 80 33 Regions Visited 28 Branch Regions 20 Pre-discovered Areas 19 | . 1 . 1 . 2 1 3 3 . . 1 . . 1 . . . 1 . . 1 . 1 3 . . . . Known Exits Taken 19 | . . . . . 1 . . 1 . . 1 1 1 1 1 1 1 1 1 1 1 1 1 1 1 1 1 . Unknown Exits Taken 7 | 1 1 1 1 1 . 1 1 . . . . . . . . . . . . . . . . . . . . . Scrap Searched 28 | . . 1 . 3 . . . 10 . . . 6 1 . 1 . 2 1 . . . 2 . . 1 . . . Spaces Dug 209 | . . . . . 2 . . . 29 . 34 . . . . 42 3 4 2 3 29 5 6 . 1 24 16 9 Terrain Destroyed 419 | . . . . 13 8 21 . . 29 . 34 . . . 13 42 9 9 3 5 39 10 59 . 28 29 20 48 Melee 164 | . . . . . 2 . . . 29 . 34 . . . . 42 1 1 2 1 23 . 2 . . 18 3 6 Projectile 132 | . . . . . 6 . . . . . . . . . . . 8 8 1 4 16 10 8 . 1 11 17 42 AOE 123 | . . . . 13 . 21 . . . . . . . . 13 . . . . . . . 49 . 27 . . . Terrain Rammed . | . . . . . . . . . . . . . . . . . . . . . . . . . . . . . Walls Destroyed . | . . . . . . . . . . . . . . . . . . . . . . . . . . . . . Machines Disabled . | . . . . . . . . . . . . . . . . . . . . . . . . . . . . . Actions | -11 -10 -10 -10 -9 -8 -8 -8 -8 -6 -6 -6 -6 -6 -6 -5 -5 -5 -5 -5 -4 -4 -4 -4 -4 -3 -3 -3 -3 --------- Run | Yrd Mat Min Exi Min Mat Sto Rec Scr Fac Was Fac Low Low Dat Pro Fac Upp Upp War Pro Fac Upp Upp Zhi Pro Res Qua Frg Total 24270 | 39 897 600 673 502 1770 618 481 2103 1536 59 1608 228 322 209 369 2281 256 447 1186 157 2024 475 416 307 591 1161 913 2042 Wait 2103 | . 64 29 7 . 134 34 . 45 125 . 84 9 . 21 34 364 18 98 148 4 295 24 66 1 163 217 73 46 Move 20262 | 29 721 529 648 484 1352 464 470 2027 1299 59 1435 217 322 158 252 1795 226 332 974 145 1597 426 326 275 412 870 778 1640 Hop . | . . . . . . . . . . . . . . . . . . . . . . . . . . . . . Pick Up 180 | 1 22 2 5 4 32 7 . 5 17 . 6 . . 4 1 17 . . 5 . 11 . . 5 . 15 6 15 Fast Attach 116 | 1 . 2 . . 26 7 . 1 4 . 6 . . . . 1 . . 10 . 6 . . 6 . . 2 44 Attach 61 | . 3 2 2 . 4 1 . 2 6 . 1 . . . . 5 . . . . 4 . . . . 3 2 26 Detach 40 | . . 1 . . 4 . . 2 2 . 1 . . . . 4 . . 1 . . . . . . . 1 24 Swap 213 | . 10 3 1 5 27 17 3 10 11 . 10 2 . 3 7 11 3 8 10 3 10 6 7 4 5 6 9 22 Drop 264 | . 16 3 6 4 60 19 3 11 13 . 8 . . 4 1 19 . . 17 . 14 . . 11 . 12 10 33 Fire 537 | 8 61 28 . 5 129 67 3 . . . . . . . 2 . 8 8 4 4 22 19 15 . 5 15 20 114 Melee 365 | . . . 4 . 2 2 . . 59 . 57 . . 19 2 65 1 1 8 1 65 . 2 5 . 23 11 38 Ram . | . . . . . . . . . . . . . . . . . . . . . . . . . . . . . Kick . | . . . . . . . . . . . . . . . . . . . . . . . . . . . . . Crush 3 | . . 1 . . . . 2 . . . . . . . . . . . . . . . . . . . . . Escape Stasis 7 | . . . . . . . . . . . . . . . . . . . . . . . . . 6 . 1 . Rewire 79 | . . . . . . . . . . . . . . . 70 . . . 9 . . . . . . . . . Trap . | . . . . . . . . . . . . . . . . . . . . . . . . . . . . . Miscellaneous 40 | . . . . . . . . . . . . . . . . . . . . . . . . . . . . 40 Route ------- -11/Scrapyard -10/Materials (discovered 5 exits: [*Mat x3] / [*Min x2]) -10/Mines (discovered 3 exits: [*Mat x2] / *Exi) -10/Exiles -9/Mines (discovered 2 exits: *Mat x2) -8/Materials (discovered 3 exits: *Fac x2 / *Sto) -8/Storage -8/Recycling -8/Scraptown (discovered 2 exits: *Fac x2) -6/Factory (discovered 5 exits: *Fac x3 / *Low x2) -6/Waste -6/Factory (discovered 4 exits: *Fac x2 / *Low x2) -6/Lower Caves -6/Lower Caves (discovered 2 exits: *Fac / *Dat) -6/Data Miner -5/Proximity Caves -5/Factory (discovered 4 exits: Fac x2 / *Upp x2) -5/Upper Caves -5/Upper Caves (discovered 2 exits: Fac / *War) -5/Warlord -4/Proximity Caves -4/Factory (discovered 5 exits: *Res x3 / *Upp x2) -4/Upper Caves -4/Upper Caves (discovered 2 exits: *Res / *Zhi) -4/Zhirov -3/Proximity Caves -3/Research (discovered 5 exits: *Res x2 / Arm / *Qua x2) -3/Quarantine (discovered 3 exits: *Res / *Sec / *Frg) -3/Protoforge History --------- Turn | Location | Event 1 | -11/Scrapyard | Discovered new exit (range 3) 63 | -11/Scrapyard | Entered Materials 168 | -10/Materials | Discovered new exit (range 14) 311 | -10/Materials | Build established: Mutant 443 | -10/Materials | Discovered new exit (range 12) 593 | -10/Materials | Discovered new exit (range 16) 826 | -10/Materials | Discovered new exit (range 10) 871 | -10/Materials | Repaired Lgt. Treads? 938 | -10/Materials | Repaired Lgt. Treads 1063 | -10/Materials | Discovered new exit (range 13) 1138 | -10/Materials | Build established: Scavenger-Mutant 1474 | -10/Materials | Entered Mines 1573 | -10/Mines | Discovered new exit (range 3) 1625 | -10/Mines | Found a Scrap Suit stashed away for nefarious purposes 1629 | -10/Mines | Found Scrap Suit 1745 | -10/Mines | Assisted by bots powering up and referring to "LRC-V3" 1822 | -10/Mines | Deemed a non-threat by the Exiles lab entrance 1824 | -10/Mines | Discovered new exit (range 5) 2161 | -10/Mines | Discovered new exit (range 8) 2255 | -10/Mines | Assembled infested the area 2298 | -10/Mines | Core integrity fell below 50% 2436 | -10/Mines | Entered Exiles 2480 | -10/Exiles | Met 8R-AWN 2502 | -10/Exiles | Met EX-HEX 2652 | -10/Exiles | Met EX-DEC 2682 | -10/Exiles | Visited The Gauntlet 3037 | -10/Exiles | Met EX-BIN 3203 | -10/Exiles | Learned location of Zion (-7) 3476 | -10/Exiles | Discovered new exit (range 10) 3496 | -10/Exiles | Entered Mines 3607 | -9/Mines | Discovered new exit (range 9) 3633 | -9/Mines | Received a Rocket Launcher from a helpful Derelict 3745 | -9/Mines | A weapon hastily lodged in a ceiling crevice suddenly fell to the ground 3775 | -9/Mines | Discovered new exit (range 16) 4105 | -9/Mines | Learned Materials emergency access door positions 4294 | -9/Mines | Entered Materials 4294 | -8/Materials | Evolved 4 slots: Propulsion x2, Utility x2 4295 | -8/Materials | Identified exit to Factory 5244 | -8/Materials | Build established: Mutant 6030 | -8/Materials | Build established: Scavenger-Mutant 6157 | -8/Materials | Repaired Hrd. Medium Armor Plating 6513 | -8/Materials | Discovered new exit (range 16) 6791 | -8/Materials | Identified exit to Storage 7027 | -8/Materials | Discovered exit to Factory (range 4) 7118 | -8/Materials | Entered Storage 7439 | -8/Storage | Build established: Mutant 7628 | -8/Storage | Assisted by bots powering up and referring to "LRC-V3" 7907 | -8/Storage | Build established: Commander-Mutant 7942 | -8/Storage | Lost 5 allies 7997 | -8/Storage | Lost 4 allies 8136 | -8/Storage | Used back door to open Recycling access 8136 | -8/Storage | Discovered new exit (range 5) 8143 | -8/Storage | Entered Recycling 8252 | -8/Recycling | Build established: Mutant 8773 | -8/Recycling | Build established: Scavenger-Mutant 8884 | -8/Recycling | Scanned before Scraplab entrance 8907 | -8/Recycling | Entered Scraplab 8920 | -8/Recycling | Discovered new exit (range 2) 8922 | -8/Recycling | Entered Scraptown 8922 | -8/Scraptown | System corruption cleaned by C-Scrubber 9167 | -8/Scraptown | Visited TADAMA 9174 | -8/Scraptown | Heard Great Nut preacher, LISTEN AND RECITE! 9216 | -8/Scraptown | Visited Bundlers 9327 | -8/Scraptown | Visited Awakened 9368 | -8/Scraptown | Visited Symbiants 9502 | -8/Scraptown | Discovered new exit (range 11) 9870 | -8/Scraptown | Visited UFD Registry 9870 | -8/Scraptown | Registered with UFD as "Datashell" 9935 | -8/Scraptown | Visited Scrap Suit Storage 9992 | -8/Scraptown | Visited Abandonware Association 10048 | -8/Scraptown | Visited Infowarlord's Domain 10204 | -8/Scraptown | Discovered new exit (range 5) 10257 | -8/Scraptown | Visited Cartography Club 10283 | -8/Scraptown | Visited Supply Room 10312 | -8/Scraptown | Visited Derelict Rescue Squad 10356 | -8/Scraptown | Visited Junk Repository 10615 | -8/Scraptown | Visited Scrapoid Pod Storage 10645 | -8/Scraptown | Visited DA-N13 Charitable Foundation 10670 | -8/Scraptown | Found DCF Scrap (29 items) 10811 | -8/Scraptown | Visited Cave Peace 10881 | -8/Scraptown | Visited Shadow of the Wyrm 10989 | -8/Scraptown | Build established: Mutant 11421 | -8/Scraptown | Found Surveybot 17 Chip 11433 | -8/Scraptown | Learned location of Storage (-8) 11433 | -8/Scraptown | Learned location of Warlord (-5) 11433 | -8/Scraptown | Learned 20 Factory zone layouts 11433 | -8/Scraptown | Learned 24 Factory zone layouts 11433 | -8/Scraptown | Learned 8 Research zone layouts 11433 | -8/Scraptown | Learned 4 Access zone layouts 11433 | -8/Scraptown | Learned 4 Storage zone layouts 11433 | -8/Scraptown | Learned 20 Lower Caves zone layouts 11433 | -8/Scraptown | Learned 8 Upper Caves zone layouts 11433 | -8/Scraptown | Learned 24 Upper Caves zone layouts 11433 | -8/Scraptown | Learned 24 Proximity Caves zone layouts 11433 | -8/Scraptown | Learned 4 Armory zone layouts 11433 | -8/Scraptown | Learned location of 1 exit from Research 11433 | -8/Scraptown | Learned location of 1 exit from Lower Caves 11433 | -8/Scraptown | Learned location of 3 exits from Upper Caves 11457 | -8/Scraptown | Found Deep Structural Scanner 11488 | -8/Scraptown | Found Exp. Signal Interpreter 11519 | -8/Scraptown | Visited Cyclists 11525 | -8/Scraptown | Entered Cyclist Reading Room 11574 | -8/Scraptown | Met Optimus 11574 | -8/Scraptown | Accepted into 0bPrime 11643 | -8/Scraptown | Identified exit to Factory 11657 | -8/Scraptown | Entered Factory 11657 | -6/Factory | Evolved 4 slots: Propulsion x1, Utility x3 11658 | -6/Factory | Identified exit to Factory 11658 | -6/Factory | Identified exit to Lower Caves 11788 | -6/Factory | Repaired Lgt. Nuclear Core 12056 | -6/Factory | Build established: Scout 12436 | -6/Factory | Central database locked down 12443 | -6/Factory | Manually triggered Chute Trap 12443 | -6/Factory | Sucked down chute 12443 | -6/Factory | Entered Waste 12446 | -6/Waste | Spotted C-40 Crusher 12451 | -6/Waste | Spotted C-40 Crusher 12455 | -6/Waste | Spotted C-40 Crusher 12455 | -6/Waste | Spotted C-40 Crusher 12456 | -6/Waste | Discovered new exit (range 21) 12458 | -6/Waste | EMP discharged 12458 | -6/Waste | Spotted C-40 Crusher 12459 | -6/Waste | Spotted C-40 Crusher 12463 | -6/Waste | Identified exit to Factory 12464 | -6/Waste | Entered Factory 12488 | -6/Factory | Loaded intel: 8 recycling unit locations 12602 | -6/Factory | Central database locked down 12666 | -6/Factory | Learned location of Protoforge (-3) 12668 | -6/Factory | Discovered exit to Lower Caves (range 12) 12925 | -6/Factory | Discovered exit to Factory (range 7) 13012 | -6/Factory | Spotted B-75 Beast 13029 | -6/Factory | Discovered exit to Factory (range 16) 13228 | -6/Factory | Entered Lower Caves 13228 | -6/Lower Caves | Accompanied by 1 ally 13229 | -6/Lower Caves | Identified exit to Lower Caves 13314 | -6/Lower Caves | Entered another Lower Caves area 13314 | -6/Lower Caves | Accompanied by 1 ally 13323 | -6/Lower Caves | Discovered exit to Factory (range 17) 13408 | -6/Lower Caves | Discovered new exit (range 18) 13413 | -6/Lower Caves | Identified exit to Data Miner 13424 | -6/Lower Caves | Entered Data Miner 13424 | -6/Data Miner | Discovered new exit (range 6) 13429 | -6/Data Miner | Met Data Miner 13438 | -6/Data Miner | Learned location of Section 7 (-3) 13438 | -6/Data Miner | Acquired the access code to Warlord's prototype stash 13444 | -6/Data Miner | Received God Mode back door access code from Data Miner 13451 | -6/Data Miner | Identified exit to Proximity Caves 13478 | -6/Data Miner | Destroyed Data Miner 13482 | -6/Data Miner | Found Prototype Hackware 13483 | -6/Data Miner | Found Prototype Hackware 13484 | -6/Data Miner | Found Prototype Hackware 13486 | -6/Data Miner | Data Conduit disabled 13568 | -6/Data Miner | Entered Proximity Caves 13597 | -5/Proximity Caves | Learned location of 1 exit from Factory 13606 | -5/Proximity Caves | Snuck into a huge 0b10 base via the rear entrance 13625 | -5/Proximity Caves | Derelicts attacked a huge 0b10 base 13752 | -5/Proximity Caves | Loaded intel: 1 recycling unit location 13779 | -5/Proximity Caves | Entered Factory 13779 | -5/Factory | Accompanied by 6 allies 13779 | -5/Factory | Evolved 2 slots: Utility x2 13780 | -5/Factory | Identified exit to Upper Caves 13781 | -5/Factory | Identified exit to Factory 13869 | -5/Factory | Identified Ghost Barrier 13871 | -5/Factory | Identified Deep Network Scanner 13872 | -5/Factory | Identified System Mapper 14171 | -5/Factory | Spotted B-75 Beast 14223 | -5/Factory | Repaired Aerolev Unit? 14293 | -5/Factory | Fabricated Exp. Utility Shielding? 14500 | -5/Factory | Discovered exit to Factory (range 12) 14517 | -5/Factory | Build established: Wizard-Scout 14615 | -5/Factory | Fabricated Cld. Gravmag System? 14617 | -5/Factory | Fabricated Cld. Gravmag System? 14631 | -5/Factory | Loaded intel: 8 recycling unit locations 15200 | -5/Factory | Central database locked down 15218 | -5/Factory | Entered Upper Caves 15219 | -5/Upper Caves | Identified exit to Upper Caves 15324 | -5/Upper Caves | Learned Factory machine intel 15366 | -5/Upper Caves | Entered another Upper Caves area 15367 | -5/Upper Caves | Identified exit to Warlord 15463 | -5/Upper Caves | Encountered a Warlord checkpoint 15481 | -5/Upper Caves | Entered an active Warlord outpost 15487 | -5/Upper Caves | Learned Factory trap positions 15487 | -5/Upper Caves | Learned Armory stockpile data 15487 | -5/Upper Caves | Learned Factory terminal intel 15651 | -5/Upper Caves | Entered Warlord 15684 | -5/Warlord | System corruption cleaned by Quarantine Array 15751 | -5/Warlord | Warlord's base attacked by MAIN.C 15810 | -5/Warlord | Opened Warlord's prototype stash 15817 | -5/Warlord | Found System Mapper 15820 | -5/Warlord | Found Prototype Device 15820 | -5/Warlord | Identified Exp. Phase Shifter 15843 | -5/Warlord | Rebuked by Warlord 15907 | -5/Warlord | Found Prototype Launcher 15907 | -5/Warlord | Identified Vortex Catalyst Activator 15909 | -5/Warlord | Found Prototype Piercing Weapon 15909 | -5/Warlord | Identified Vortex Lance 15912 | -5/Warlord | Found Prototype Energy Cannon 15912 | -5/Warlord | Identified Vortex Cannon 15915 | -5/Warlord | Found Vortex Lance 16013 | -5/Warlord | Opened side exit 16101 | -5/Warlord | Warlord forces counterattacked 16199 | -5/Warlord | Spotted Executioner 16206 | -5/Warlord | Build established: Wizard-Mutant 16214 | -5/Warlord | P-70 Sage assimilated allied Slayer 6b 16279 | -5/Warlord | Spotted Executioner 16299 | -5/Warlord | Lost 6 allies 16315 | -5/Warlord | Spotted Striker 16319 | -5/Warlord | Discovered new exit (range 16) 16337 | -5/Warlord | Identified exit to Proximity Caves 16338 | -5/Warlord | Entered Proximity Caves 16361 | -4/Proximity Caves | Lost 5 allies 16416 | -4/Proximity Caves | Learned Research emergency access door positions 16422 | -4/Proximity Caves | Discovered exit to Factory (range 9) 16426 | -4/Proximity Caves | Entered Factory 16426 | -4/Factory | Evolved 2 slots: Utility x2 16427 | -4/Factory | Identified exit to Research 16427 | -4/Factory | Identified exit to Upper Caves 16428 | -4/Factory | Loaded intel: 93 trap records 16429 | -4/Factory | Loaded intel: 256 machine locations 16430 | -4/Factory | Loaded intel: 26 terminal locations 16651 | -4/Factory | Build established: Wizard-Scout 16685 | -4/Factory | Discovered exit to Upper Caves (range 20) 16697 | -4/Factory | Spotted B-86 Titan 16725 | -4/Factory | Central database locked down 16792 | -4/Factory | Repaired Exp. Utility Shielding 17169 | -4/Factory | Repaired Great Axe+ 17200 | -4/Factory | Repaired Aerolev Unit 17245 | -4/Factory | Loaded intel: 8 recycling unit locations 17617 | -4/Factory | Repaired Cmb. Airjet+ 17735 | -4/Factory | Entered Upper Caves 17736 | -4/Upper Caves | Identified exit to Upper Caves 17942 | -4/Upper Caves | Learned 4 Research zone layouts 18007 | -4/Upper Caves | Entered another Upper Caves area 18019 | -4/Upper Caves | Discovered exit to Research (range 6) 18107 | -4/Upper Caves | Spotted B-86 Titan 18109 | -4/Upper Caves | Attracted the attention of an 0b10 checkpoint 18173 | -4/Upper Caves | Attracted the attention of an 0b10 outpost 18261 | -4/Upper Caves | Discovered new exit (range 18) 18272 | -4/Upper Caves | Identified exit to Zhirov 18272 | -4/Upper Caves | Entered Zhirov 18274 | -4/Zhirov | Discovered new exit (range 3) 18283 | -4/Zhirov | Met Zhirov 18292 | -4/Zhirov | Learned location of Quarantine (-3) 18292 | -4/Zhirov | Learned location of Testing (-2) 18296 | -4/Zhirov | Zhirov requested help retrieving the SGEMP Prototype 18304 | -4/Zhirov | Found Alien Artifact 18304 | -4/Zhirov | Identified Integrated Dissipator 18304 | -4/Zhirov | Installed Integrated Dissipator, increased core heat dissipation (+20) 18440 | -4/Zhirov | Identified exit to Proximity Caves 18442 | -4/Zhirov | Entered Proximity Caves 18519 | -3/Proximity Caves | Spotted B-86 Titan 18814 | -3/Proximity Caves | Discovered exit to Research (range 20) 18822 | -3/Proximity Caves | Entered Research 18822 | -3/Research | Evolved 2 slots: Utility x2 18823 | -3/Research | Identified exit to Research 19043 | -3/Research | Spotted B-86 Titan 19096 | -3/Research | Repaired Cld. Gravmag System? 19124 | -3/Research | Repaired Rocket Launcher+ 19130 | -3/Research | Build established: Wizard-Ninja 19134 | -3/Research | Central database locked down 19211 | -3/Research | Spotted B-86 Titan 19211 | -3/Research | Found Tesla Bomb Launcher 19280 | -3/Research | Identified exit to Armory 19280 | -3/Research | Identified exit to Quarantine 19432 | -3/Research | Discovered exit to Research (range 13) 19572 | -3/Research | Entered Quarantine 19779 | -3/Quarantine | Scanned by Researcher 19902 | -3/Quarantine | Found Alien Slashing Weapon 19902 | -3/Quarantine | Identified Sigix Broadsword 19948 | -3/Quarantine | Unchained authorized (DW-4LL) 20008 | -3/Quarantine | Discovered exit to Research (range 11) 20014 | -3/Quarantine | Found Alien Artifact 20065 | -3/Quarantine | Build established: Wizard-Scout 20067 | -3/Quarantine | Spotted Fortress 20106 | -3/Quarantine | Discovered new exit (range 6) 20106 | -3/Quarantine | Discovered new exit (range 7) 20108 | -3/Quarantine | Identified exit to Section 7 20109 | -3/Quarantine | DW-4LL burst out of a wall 20109 | -3/Quarantine | Identified exit to Protoforge 20110 | -3/Quarantine | Entered Protoforge 20114 | -3/Protoforge | Identified Subatomic Replicator 20123 | -3/Protoforge | Used Subatomic Replicator to replicate Cld. Antigrav System 20190 | -3/Protoforge | Superfortress began startup sequence 20325 | -3/Protoforge | Spotted AP7-3 20325 | -3/Protoforge | Spotted AP7-3 20329 | -3/Protoforge | Spotted EXE-6 20332 | -3/Protoforge | Spotted EXE-6 20335 | -3/Protoforge | Spotted Decapitator 20335 | -3/Protoforge | Spotted Decapitator 20360 | -3/Protoforge | UFD initiated attack on Protoforge (Readiness: Adequate) 20360 | -3/Protoforge | Loaded intel: 3 recycling unit locations 20369 | -3/Protoforge | Lost 6 parts (2n3u1w) 20401 | -3/Protoforge | Optimus greeted in Protoforge 20407 | -3/Protoforge | System corruption reached 10% 20422 | -3/Protoforge | Found Scrap Suit 20431 | -3/Protoforge | Found UFD Drillbomb 20442 | -3/Protoforge | Lost 3 parts (1p1u1w) 20446 | -3/Protoforge | Lost 14 allies 20452 | -3/Protoforge | Found Exp. Core Analyzer 20455 | -3/Protoforge | Found Prototype Device 20455 | -3/Protoforge | Identified Exp. Kinecellerator 20549 | -3/Protoforge | Installed UFD Drillbomb at designated target 20549 | -3/Protoforge | UFD reported confirmed Drillbomb installation 20565 | -3/Protoforge | Spotted Hotshot 20566 | -3/Protoforge | Spotted Hotshot 20575 | -3/Protoforge | Met 7R-MNS 20588 | -3/Protoforge | UFD reported confirmed Drillbomb installation 20595 | -3/Protoforge | Spotted Striker 20602 | -3/Protoforge | Lost 3 allies 20615 | -3/Protoforge | Found UFD Drillbomb 20664 | -3/Protoforge | Spotted Executioner 20664 | -3/Protoforge | Spotted Striker 20669 | -3/Protoforge | Spotted Striker 20671 | -3/Protoforge | Spotted Striker 20685 | -3/Protoforge | Destroyed Executioner 20691 | -3/Protoforge | Found Exp. Core Analyzer 20697 | -3/Protoforge | Spotted Overlord 20704 | -3/Protoforge | Lost 4 allies 20722 | -3/Protoforge | Build established: Scavenger-Scout 20771 | -3/Protoforge | Installed UFD Drillbomb at designated target 20771 | -3/Protoforge | UFD reported confirmed Drillbomb installation 20792 | -3/Protoforge | Spotted 03F06-K 20792 | -3/Protoforge | Spotted Executioner 20839 | -3/Protoforge | Found Prototype Processor 20839 | -3/Protoforge | Identified Exp. Target Analyzer 20860 | -3/Protoforge | Found UFD Drillbomb 20905 | -3/Protoforge | Spotted Striker 20946 | -3/Protoforge | Spotted Striker 20953 | -3/Protoforge | Found Exp. Targeting Computer 20969 | -3/Protoforge | Found Prototype Device 20969 | -3/Protoforge | Identified Adv. Kinecellerator 21049 | -3/Protoforge | Installed UFD Drillbomb at designated target 21049 | -3/Protoforge | UFD reported confirmed Drillbomb installation 21136 | -3/Protoforge | Build established: Scavenger-Assassin 21145 | -3/Protoforge | Spotted Executioner 21149 | -3/Protoforge | Destroyed Executioner 21150 | -3/Protoforge | P-80 Master assimilated allied Lugger 683 21151 | -3/Protoforge | Spotted Executioner 21153 | -3/Protoforge | Found UFD Drillbomb 21166 | -3/Protoforge | Spotted Hotshot 21168 | -3/Protoforge | Spotted Hotshot 21171 | -3/Protoforge | Spotted Hotshot 21186 | -3/Protoforge | Destroyed Hotshot 21195 | -3/Protoforge | Spotted Striker 21215 | -3/Protoforge | Lost 11 allies 21235 | -3/Protoforge | Spotted Striker 21238 | -3/Protoforge | Spotted Striker 21268 | -3/Protoforge | Spotted Hotshot 21300 | -3/Protoforge | Spotted Striker 21301 | -3/Protoforge | Spotted Executioner 21367 | -3/Protoforge | Spotted Immortal 21368 | -3/Protoforge | Spotted Immortal 21374 | -3/Protoforge | Spotted Striker 21397 | -3/Protoforge | Destroyed Immortal 21401 | -3/Protoforge | Found Prototype Piercing Weapon 21403 | -3/Protoforge | Spotted Striker 21411 | -3/Protoforge | Spotted Executioner 21411 | -3/Protoforge | Spotted Executioner 21415 | -3/Protoforge | Spotted Immortal 21416 | -3/Protoforge | Spotted Executioner 21419 | -3/Protoforge | Spotted Executioner 21455 | -3/Protoforge | Lost 9 allies 21464 | -3/Protoforge | Build established: Scavenger-Skirmisher 21482 | -3/Protoforge | Spotted Hotshot 21483 | -3/Protoforge | Spotted Hotshot 21551 | -3/Protoforge | Lost 5 parts (2n2u1w) 21564 | -3/Protoforge | Spotted Striker 21590 | -3/Protoforge | Spotted Striker 21607 | -3/Protoforge | Destroyed Executioner 21636 | -3/Protoforge | Lost 9 allies 21639 | -3/Protoforge | Spotted Striker 21643 | -3/Protoforge | Spotted Striker 21655 | -3/Protoforge | Destroyed Striker 21664 | -3/Protoforge | Destroyed Striker 21665 | -3/Protoforge | Lost 6 parts (3n3u) 21726 | -3/Protoforge | Lost 8 allies 21772 | -3/Protoforge | Spotted Executioner 21781 | -3/Protoforge | Spotted Executioner 21793 | -3/Protoforge | Found Exp. Targeting Computer 21803 | -3/Protoforge | Destroyed Immortal 21811 | -3/Protoforge | Found Prototype Processor 21811 | -3/Protoforge | Identified Exp. Melee Analysis Suite 21819 | -3/Protoforge | Lost 5 allies 21836 | -3/Protoforge | Spotted Hotshot 21846 | -3/Protoforge | Spotted Hotshot 21846 | -3/Protoforge | Installed UFD Drillbomb at designated target 21846 | -3/Protoforge | UFD reported confirmed Drillbomb installation 21847 | -3/Protoforge | Spotted Hotshot 21884 | -3/Protoforge | UFD reported confirmed Drillbomb installation 21905 | -3/Protoforge | Spotted Striker 21906 | -3/Protoforge | Spotted Striker 21908 | -3/Protoforge | Found UFD Drillbomb 21912 | -3/Protoforge | Core integrity fell below 50% 21924 | -3/Protoforge | Destroyed Striker 21936 | -3/Protoforge | Spotted Striker 21937 | -3/Protoforge | Spotted Striker 21945 | -3/Protoforge | Lost 3 parts (2n1u) 21965 | -3/Protoforge | Spotted Striker 21969 | -3/Protoforge | Destroyed Striker 21970 | -3/Protoforge | Spotted Striker 21983 | -3/Protoforge | Identified Exp. Jetlance 21986 | -3/Protoforge | Lost 4 allies 21987 | -3/Protoforge | Destroyed Striker 21994 | -3/Protoforge | Core integrity fell below 20% 21999 | -3/Protoforge | Destroyed Striker 22000 | -3/Protoforge | Destroyed by Hotshot with Precision Phase Gun Last Messages --------------- 21987_ Vortex Lance follow-up attack on Striker. 21987_ Striker suffers critical hit (Sunder). 21987_ Striker Plasma Lance ripped off. 21987_ Striker Lgt. Quantum Reactor ripped off. 21987_ Striker destroyed. 21988_ Acquired 2 matter. 21988_ N-04 Retriever collects Unknown Reactor. 21990_ L-61 Swordsman suffers critical hit (Impale). 21990_ Vortex Lance follow-up attack on L-61 Swordsman. 21993_ Slug penetrates Reinforced Barrier. 21993_ Centrium Light Armor Plating destroyed. 21999_ System corrupted: Energy discharge (-169). 21999_ Striker destroyed. 21999_ Exp. Jetlance follow-up attack on L-61 Swordsman. 21999_ Exp. Melee Analysis Suite destroyed. 22000_ Hotshot activates shielding mode. Map ----- +----------------------------------------------------+ | ?##????????????????????# " "" "?????? | | ###????????????????????# """" " """""??? | | ####????????????????????# "" "" " """""""" | | ##??????????????????????# "" " "" """""""" | | ##??????????????????????# " " """"""""" | | ##??????????????????????# " " """"""""" | | ##??????????????????????# """"""""" | | #??????????????????????# % """"""""" | | ##########?????????????# % """"""""" | | #### ######?????????????# " % %%% """"""""" | | # ##?????????????# """ % %%n """"""""" | | ##########?????# " """ """"% " """"""""" | | # ## #####?????# % """"""""" | | # "" ##???###%! "% """""""" | | " ##### # % % """""""" | | * " # # # # % %% """" "" """""""" | | %= # """ " " """"""" | | % ==[!# # % % % """""" | | !% =/%%*=[[! ## # % % " """"" | | " % %% % %% # %" %%%"" "" """" | | % %%%%%% %% %%%%%%%%%% %;% "" % %"" " %""" | | %%%%%%%%%%%%%%&%%%%%%%%%%%%%"% % "" % n %"" | | %%%%% %& %%%%&%%%% %%% %%=gg%&%%m % %%% % | | %&!= % !%%%&%[*%%! &% % #*s!% " % %n % """ | | *=!%*=*&|%!!!%= % %=#l%%%% % % % %% " " | | * **%%%![* #@b%*" %"% %% %% %% % | | !!%|=!% % " #!=/% %% % | | " % % [ % % "##m%" % " % % % """ % | | %" %% %%%""" "## ! % % % " | | #"## % % % """ ## % " " " % | | ## %=% % !% %"## "" % " " % %% | | # #!= % ! % "## " "" % | | ##**[ !%%!*!![% "## "" " " % ""&"" | | # =*%%* ## "" % " %" " | | #### [ ### ### "" "" = | | #### % # " "" | | ## " " ; "" "" """" " | | ## #### ## %% "" "" """ " " " | | ## % # " ######### ################ | | ## %% % " " ##??????####??????????????? | | ## !=% ""% ##????????????????????????? | | ## "" ##????????????????????????? | | ## %%%% ! % ##????????????????????????? | | ## %%[! % ##????????????????????????? | | ## =%!## % # ###????????????????????????? | | ## #%= #[% ^^ ##????????????????????????? | | ## # #! /* ##????????????????????????? | | #### ### # ##????????????????????????? | | ##########!* # ##????????????????????????? | | ##########=%[ # # # ###????????????????????????? | +----------------------------------------------------+ Best States ------------- Heat Dissipation 66 Energy Generation 29 Energy Capacity 850 Matter Stores 300 Matter Capacity 300 Sight Range 23 Robot Scan Range 16 Terrain Scan Range 20 Terrain Scan Density 1210 Jamming Range 16 Armor Coverage 525 Core Shielding 40 Propulsion Shielding 66 Utility Shielding 90 Melee Speed Boost 30 Phase Shifting 20 Evasion (%) 91 Targeting Accuracy 30 Melee Accuracy 20 Target Analysis 10 Core Analysis 12 Armor Integrity Analysis 40 Recoil Reduction 4 Particle Charging 15 Kinecelleration 50 Offensive Hacking 65 Defensive Hacking 20 Item Schematics ----------------- Power Sword | -6/Factory | Hacked Combat Drone Bay | -6/Data Miner | Free Lgt. Regenerative Plating | -6/Data Miner | Free Cld. Gravmag System | -6/Data Miner | Free Adv. EM Disruption Field | -6/Data Miner | Free Hvy. Proton Cannon | -6/Data Miner | Free Centrium Wheel | -6/Data Miner | Free Adv. Focal Shield | -6/Data Miner | Free Hvy. Gauss Cannon | -6/Data Miner | Free Imp. Linear Gravjet | -6/Data Miner | Free Exp. Utility Shielding | -5/Factory | Hacked Fusion Bomb Launcher | -5/Factory | Hacked Mic. Antimatter Reactor | -4/Factory | Hacked Hyp. Railgun | -4/Factory | Hacked Cmb. Linear Gravjet | -4/Factory | Hacked Adv. Particle Charger | -4/Factory | Hacked Assault Drone Bay | -4/Zhirov | Free Exp. Heat Sink | -4/Zhirov | Free Exp. Optical Array | -4/Zhirov | Free Imp. Arc Thrower | -4/Zhirov | Free Enh. Fission Core | -3/Quarantine | Archive Exp. Cooling System | -3/Quarantine | Archive Robot Schematics ------------------ Y-54 Guardian | -6/Data Miner | Free G-50 Soldier | -6/Data Miner | Free E-15 Imp | -6/Data Miner | Free B-60 Warrior | -6/Data Miner | Free H-77 Assassin | -6/Data Miner | Free Fabricated ------------ Exp. Utility Shielding | x1 | -5/Factory Cld. Gravmag System | x1 | -5/Factory Cld. Gravmag System | x1 | -5/Factory Repaired ---------- Lgt. Treads | 22% | -10/Materials Lgt. Treads | 38% | -10/Materials Hrd. Medium Armor Plating | 12% | -8/Materials Lgt. Nuclear Core | 64% | -6/Factory Aerolev Unit | 62% | -5/Factory Exp. Utility Shielding | 65% | -4/Factory Great Axe | 34% | -4/Factory Aerolev Unit | 32% | -4/Factory Cmb. Airjet | 63% | -4/Factory Cld. Gravmag System | 15% | -3/Research Rocket Launcher | 27% | -3/Research Studied --------- Great Axe | -6/Factory | Hacked Mic. Fission Core | -5/Factory | Hacked Lgt. Angular Momentum Engine | -5/Factory | Hacked Hvy. Pick | -5/Factory | Hacked Rocket Launcher | -5/Factory | Hacked Katana | -5/Factory | Hacked Lgt. Antimatter Reactor | -4/Factory | Hacked Cmb. Airjet | -4/Factory | Hacked Hvy. Phase Cannon | -3/Research | Hacked Alien Tech Used ----------------- Integrated Dissipator Sigix Broadsword Subatomic Replicator Achievements -------------- All Kinds Of Bad News Analysis Probe Botjacking Fancy Inventory Fine I'll Do It Myself Ghost 'Em Hackathon Hulk Smash Network Effect Professional Mechanic We Are One Challenges ------------ None Game ------ Seed DefenseEnhancedRegenerator Manual? 0 Play Time 08:01:13 Cumulative 542.0 hours Start 2025.11.07 @ 14:13:41 End 2025.11.08 @ 21:31:00 Sessions 10 Manual Loads 0 Difficulty Rogue Special Mode None Game No. 159 Rogue 120 Adventurer 0 Explorer 39 Win Type - Total 15 Types 12/1/1/1/0/0/0/0/0/0 Lore% 73 Gallery% 73 Achievement% 48 Wizard Run 0 Options --------- Layout 2 ASCII 1 Keyboard 1 Movement Arrows Keybinds 0 Fullscreen 1 Font 24/Smallcaps Map View 50x44 Zoom Use 0% Tactical HUD 1 Map Filters NONE Filters NONE Steam 1 RUN: f8c7daca-7858-4a99-a045-093c75296396